Cogmind - Beta 14 @@@ ROGUE MODE // 2024.08.31 @ 07:33:49 Player: Darby Result: Escaped! Performance ------------- Evolutions (9) 4500 Regions Visited (30) 6000 Robots Destroyed (377) 1885 Value Destroyed (18123) 18123 Prototype IDs (84) 1680 Alien Tech Used (2) 400 Bonus (12939) 12939 TOTAL SCORE: 45527 Bonus ------- High Alert Combat Kills 2230 Follower Combat Kills 4128 Entered Garrisons 800 Used RIF Installer 2000 Network Hubs Disabled 200 Aligned with FarCom 300 Met Data Miner 300 Met Zhirov 300 Built Enhanced Grunts 300 Win 3000 Friendly Fire -619 Cogmind --------- Core Integrity 1525/1600 Matter 260/300 Energy 96/100 System Corruption 5% Temperature Cool (12) Movement Flying (32) Location To Epsilon Eridani Parts ------- > --- POWER (2) -------- (None) > --- PROPULSION (6) --- Cesium-ion Thruster Nuclear Pulse Array Nuclear Pulse Array > --- UTILITY (14) ----- Advanced Heat Sink Machine Analyzer Enhanced Optical Array Advanced Targeting Computer Advanced Melee Analysis Suite Propulsion Shielding Improved Hacking Suite System Shield Improved System Shield Relay Coupler [NC] (19) > --- WEAPON (4) ------- Force Lance > --- INVENTORY (5) ---- Transdimensional Reconstructor Enhanced Nova Cannon Peak State ------------ > --- POWER ------------ Mini Fusion Reactor Micro Antimatter Reactor > --- PROPULSION ------- Improved Heavy Siege Treads Biometal Heavy Treads Biometal Heavy Treads > --- UTILITY ---------- Advanced Heat Sink Huge Storage Unit Machine Analyzer Enhanced Optical Array Long-range Terrain Scanner Improved Targeting Computer Advanced Targeting Computer Advanced Melee Analysis Suite Core Analyzer Centrium Medium Armor Plating Relay Coupler [NC] Drone Bay > --- WEAPON ----------- Matter Neutralizer Tiamat Missile Launcher > --- INVENTORY -------- Light Particle Reactor Centrium Heavy Treads Centrium Heavy Treads Centrium Heavy Treads Advanced Heat Sink High-capacity Storage Unit Advanced Energy Well Terrain Scan Processor Precision Energy Filter Experimental Utility Shielding Light Regenerative Plating Improved Hacking Suite Improved System Shield Relay Coupler [NC] Relay Coupler [Swarmer] Relay Coupler [Hunter] Transdimensional Reconstructor HERF Cannon Advanced Plasma Cannon Improved Remote Datajack Force Lance [Rating: 147] Favorites ----------- Power Light Antimatter Reactor Engine Ion Engine Power Core Micro Nuclear Core Reactor Light Antimatter Reactor Propulsion Combat Airjet Treads Advanced Medium Treads Leg Potential Leg Wheel Wheel Hover Unit Combat Airjet Flight Unit Nuclear Pulse Array Utility Enhanced Optical Array Device Advanced Heat Sink Storage High-capacity Storage Unit Processor Enhanced Optical Array Hackware Relay Coupler [NC] Protection Light Regenerative Plating Weapon Advanced Assault Cannon Energy Gun Field Laser Energy Cannon Enhanced Nova Cannon Ballistic Gun Assault Rifle Ballistic Cannon Advanced Assault Cannon Launcher Mini Grenade Launcher Special Weapon Remote Datajack Impact Weapon Makeshift Hammer Slashing Weapon Chainsword Piercing Weapon Lance Special Melee Weapon Datajack Build | -11 -10 -10 -10 -9 -8 -8 -8 -8 -7 -7 -7 -7 -6 -6 -6 -6 -6 -5 -5 -5 -5 -4 -4 -4 -4 -4 -4 -3 -2 -1 ------- Run | Yrd Mat Min Exi Min Mat Gar Mat Gar Fac Low Low Dat Pro Fac Gar Fac Gar Fac Upp Upp Zhi Pro Fac Ext Cet Arc Hub Res Res Acc Slots Evolved 18 | . . . . . 4 . . . 2 . . . . 2 . . . 2 . . . . 2 . . . . 2 2 2 Power . | . . . . . . . . . . . . . . . . . . . . . . . . . . . . . . . Propulsion 4 | . . . . . 2 . . . . . . . . 2 . . . . . . . . . . . . . . . . Utility 12 | . . . . . 2 . . . 2 . . . . . . . . 2 . . . . 2 . . . . 2 . 2 Weapon 2 | . . . . . . . . . . . . . . . . . . . . . . . . . . . . . 2 . Parts Attached 603 | 7 49 . 5 2 10 43 42 26 17 29 4 . 30 63 31 3 33 41 4 1 11 11 28 23 3 4 23 23 19 18 Power 36 | 1 . . . . 1 3 . 2 . 3 . . 4 3 . . 1 3 . . . 2 1 2 . 1 1 3 4 1 Engine 9 | 1 . . . . 1 1 . 2 . 1 . . . 1 . . . 2 . . . . . . . . . . . . Core 11 | . . . . . . 2 . . . 2 . . 4 1 . . 1 1 . . . . . . . . . . . . Reactor 16 | . . . . . . . . . . . . . . 1 . . . . . . . 2 1 2 . 1 1 3 4 1 Propulsion 117 | 2 25 . 2 . 2 2 2 5 . 7 . . 3 17 10 . . 1 . . 3 6 6 1 1 . 3 5 8 6 Treads 46 | . 13 . . . . . . . . 1 . . . 5 3 . . . . . . . 6 1 1 . 3 5 5 3 Leg 32 | . . . 2 . 2 2 2 5 . 5 . . 2 4 . . . . . . 3 5 . . . . . . . . Wheel 23 | 2 12 . . . . . . . . . . . 1 8 . . . . . . . . . . . . . . . . Hover 9 | . . . . . . . . . . . . . . . 7 . . 1 . . . 1 . . . . . . . . Flight 7 | . . . . . . . . . . 1 . . . . . . . . . . . . . . . . . . 3 3 Utility 211 | 2 8 . 2 . 3 12 5 3 10 11 2 . 6 13 11 3 23 24 1 . 7 1 14 13 2 1 12 9 5 8 Device 109 | 1 3 . . . 1 4 1 1 4 6 1 . 3 5 5 3 9 15 1 . 5 . 9 7 1 1 11 6 2 4 Storage 14 | 1 2 . 2 . . 1 . . . 1 . . 1 1 1 . . . . . 1 1 . 1 . . . . . 1 Processor 17 | . 1 . . . . 1 1 . 2 . 1 . . 2 . . . 4 . . . . 3 . . . . 2 . . Hackware 39 | . . . . . . 3 2 1 2 1 . . . 2 4 . 12 3 . . . . 2 3 . . 1 . 2 1 Protection 32 | . 2 . . . 2 3 1 1 2 3 . . 2 3 1 . 2 2 . . 1 . . 2 1 . . 1 1 2 Artifact . | . . . . . . . . . . . . . . . . . . . . . . . . . . . . . . . Weapon 239 | 2 16 . 1 2 4 26 35 16 7 8 2 . 17 30 10 . 9 13 3 1 1 2 7 7 . 2 7 6 2 3 Energy Gun 24 | 1 3 . . . . . 15 . . 2 . . . 3 . . . . . . . . . . . . . . . . Energy Cannon 44 | . 1 . . 1 2 5 3 . . . . . . 2 2 . 1 3 . 1 . 2 4 4 . 1 5 5 . 2 Ballistic Gun 20 | 1 6 . . . . 2 . . . . . . . 7 3 . 1 . . . . . . . . . . . . . Ballistic Cannon 37 | . 1 . . 1 . 6 5 8 3 . 1 . 5 4 . . . 2 . . . . 1 . . . . . . . Launcher 35 | . 2 . . . 2 9 6 3 . 1 . . 3 . . . 2 2 2 . . . . . . . . 1 2 . Special Weapon 42 | . 3 . . . . 3 5 4 4 1 . . . 4 2 . 3 4 1 . 1 . 1 3 . 1 2 . . . Impact Weapon 5 | . . . . . . . . . . 1 . . 4 . . . . . . . . . . . . . . . . . Slashing Weapon 26 | . . . . . . . 1 1 . 3 1 . 5 10 3 . 2 . . . . . . . . . . . . . Piercing Weapon 4 | . . . . . . . . . . . . . . . . . . 2 . . . . 1 . . . . . . 1 Special Melee Weapon 2 | . . . 1 . . 1 . . . . . . . . . . . . . . . . . . . . . . . . Unidentified Prototypes 15 | . . . . . . . 2 . . 1 1 . 2 . . . . 1 . . 4 . . . 2 . 1 1 . . Corrupted Parts 4 | . . . . . . . . . . . . . 1 . . . . . . . . 1 . . . . 2 . . . System Corruption 24 | . . . . . . . . . . . . . 8 . . . . . . . . 5 . . . . 11 . . . Parts Lost 78 | . 2 . . . . 5 2 4 2 9 . . 8 5 1 . 1 2 2 . . 3 1 . . . 8 4 16 3 Power 10 | . . . . . . . . 1 . 1 . . . . . . 1 1 1 . . 1 . . . . 2 . 2 . Propulsion 24 | . . . . . . 1 2 1 1 4 . . 4 2 . . . . . . . 1 . . . . 2 . 6 . Utility 25 | . . . . . . 3 . . 1 2 . . 2 3 1 . . 1 . . . 1 . . . . 1 3 5 2 Weapon 19 | . 2 . . . . 1 . 2 . 2 . . 2 . . . . . 1 . . . 1 . . . 3 1 3 1 Highest Loss Streak 9 | . 2 . . . . 3 1 2 2 9 . . 7 4 1 . 1 2 1 . . 1 1 . . . 8 2 9 2 To Critical Strikes 1 | . . . . . . . . . 1 . . . . . . . . . . . . . . . . . . . . . Average Slot Usage (%) 90 | . 100 100 100 100 83 98 99 96 99 88 99 92 87 96 79 91 90 94 91 89 93 91 95 95 90 90 86 82 71 65 Engine 2 | . 14 14 14 14 9 3 . 5 7 . . . . . . . . 1 5 5 5 . . . . . . . . . Core 3 | . . . . . . 5 9 3 . 5 7 7 8 6 6 6 8 7 . . . . . . . . . . . . Reactor 3 | . . . . . . . . . . . . . . 5 5 . . . . . . 7 10 10 10 10 9 8 7 2 Treads 7 | . 7 . . . . . . . . 4 . . . 7 15 . . . . . . . 16 25 20 20 17 13 11 8 Leg 10 | . . . 10 28 20 35 35 35 29 22 29 28 20 17 1 . . . . . 5 26 8 . . . . . . . Wheel 2 | . 20 28 17 . . . . . . . . . 2 9 . . . . . . . . . . . . . . . . Hover 5 | . . . . . . . . . . . . . . . 4 37 37 33 33 33 26 5 . . . . . . . . Device 7 | . 4 . . . 9 4 5 . 3 8 7 7 7 8 7 14 6 11 4 5 5 5 9 9 10 10 7 12 6 8 Storage 6 | . 14 14 14 14 9 9 9 9 7 5 7 7 6 5 6 6 6 5 5 5 5 5 5 5 5 5 5 4 3 2 Processor 16 | . 1 14 14 14 9 9 16 18 23 23 22 21 21 14 10 6 6 10 11 11 11 11 24 25 25 25 25 26 23 15 Hackware 5 | . . . . . . 5 5 2 5 3 7 7 3 . 6 1 8 7 16 16 16 10 5 7 5 5 7 4 11 11 Protection 3 | . 7 . . . 9 6 . 4 4 . . . 2 5 . 6 3 5 5 5 5 5 5 3 5 5 5 4 . 2 Energy Cannon 4 | . 10 14 14 14 10 7 1 . . . . . . . 3 6 . 1 . 1 . 7 5 9 10 9 6 6 5 5 Ballistic Gun 1 | . 10 . . . . 1 . . . . . . . 2 . . . . . . . . . . . . . . . . Ballistic Cannon 2 | . 5 14 . 14 6 4 5 14 14 . 6 7 6 2 . . . 1 . . . . 2 . . . . . . . Special Weapon 1 | . . . . . . 3 . 1 . . . . . . 3 . 4 3 . . 4 1 . . . . 2 . . . Slashing Weapon 1 | . . . . . . . . . . 9 6 7 3 4 4 6 5 1 . . . . . . . . . . . . Peak Build Rating 147 | 8 9 9 27 32 43 58 58 55 63 54 48 48 61 76 95 83 84 95 90 84 96 113 127 129 136 137 135 147 144 138 Average Rating 82 | 5 7 9 15 30 35 49 52 48 62 39 47 48 50 68 87 77 72 88 80 79 88 102 123 124 134 136 131 138 130 122 On Entrance 68 | . 8 9 9 27 32 43 58 52 55 49 46 48 48 58 68 81 72 70 90 78 84 96 100 125 124 136 136 114 143 66 Naked Turns . | . . . . . . . . . . . . . . . . . . . . . . . . . . . . . . . Heaviest Build 150 | 15 32 31 49 55 63 66 66 65 69 66 55 55 83 68 85 69 73 81 64 64 64 86 99 141 144 150 141 136 130 94 Greatest Support 240 | 20 40 20 60 60 70 98 88 90 90 60 55 55 55 75 225 72 72 74 74 74 90 150 195 195 215 215 240 240 240 215 Greatest Overweight (x) 5 | 1 1 1 1 . . . . . . 2 . . 5 3 1 . 1 1 . . . . . . . . . . . . Average Overweight (x) . | . . 1 . . . . . . . . . . 1 . . . . . . . . . . . . . . . . . Largest Inventory Capacity 25 | 8 15 15 20 20 20 20 20 20 20 20 20 20 20 10 20 20 20 20 20 20 20 20 20 25 25 25 25 25 25 20 Average Capacity 19 | 7 13 15 15 20 20 20 20 20 20 16 20 20 17 9 14 20 20 20 20 20 20 20 20 20 25 25 25 25 23 16 Most Carried 25 | 8 15 15 15 20 20 20 20 20 20 20 20 20 20 10 20 20 20 20 19 18 20 20 20 20 25 25 25 24 25 8 Average Carried 17 | 5 11 15 15 18 18 19 19 19 18 15 19 20 17 9 10 19 19 18 18 17 18 19 19 19 24 24 24 19 22 4 Final Capacity 25 | 8 15 15 20 20 20 20 20 20 20 20 20 20 5 10 20 20 20 20 20 20 20 20 20 25 25 25 25 25 5 5 Final Carried 25 | 8 15 15 15 20 18 20 20 20 19 20 20 20 4 8 20 20 20 19 18 17 20 20 20 20 25 25 18 22 5 2 Class Distribution -------------------- 20% | Bothacker-Mutant 18% | Bothacker-Skirmisher 17% | Scavenger-Mutant 10% | Mutant 7% | Commander-Skirmisher 5% | Bothacker-Assassin 4% | Botlord-Skirmisher 3% | Bothacker-Scout 3% | Botlord-Mutant Dominant Class ---------------- Mutant | -10/Materials Mutant | -10/Mines Mutant | -10/Exiles Mutant | -9/Mines Skirmisher | -8/Materials Bothacker-Mutant | -8/Garrison Bothacker-Mutant | -8/Materials Bothacker-Mutant | -8/Garrison Bothacker-Mutant | -7/Factory Bothacker-Assassin | -7/Lower Caves Bothacker-Assassin | -7/Lower Caves Bothacker-Assassin | -7/Data Miner Bothacker-Skirmisher | -6/Proximity Caves Scavenger-Mutant | -6/Factory Scavenger-Mutant | -6/Garrison Scavenger-Mutant | -6/Factory Botlord-Mutant | -6/Garrison Bothacker-Mutant | -5/Factory Bothacker-Scout | -5/Upper Caves Bothacker-Scout | -5/Upper Caves Bothacker-Assassin | -5/Zhirov Bothacker-Skirmisher | -4/Proximity Caves Botlord-Skirmisher | -4/Factory Bothacker-Skirmisher | -4/Extension Commander-Skirmisher | -4/Cetus Commander-Skirmisher | -4/Archives Bothacker-Skirmisher | -4/Hub_04(d) Bothacker-Skirmisher | -3/Research Bothacker-Skirmisher | -2/Research Hacker-Assassin | -1/Access Resources | -11 -10 -10 -10 -9 -8 -8 -8 -8 -7 -7 -7 -7 -6 -6 -6 -6 -6 -5 -5 -5 -5 -4 -4 -4 -4 -4 -4 -3 -2 -1 ----------- Run | Yrd Mat Min Exi Min Mat Gar Mat Gar Fac Low Low Dat Pro Fac Gar Fac Gar Fac Upp Upp Zhi Pro Fac Ext Cet Arc Hub Res Res Acc Matter Collected 11757 | 333 781 . . 82 73 846 795 577 741 487 76 . 479 1325 573 53 677 1012 124 18 . 334 470 373 56 83 163 317 646 263 Remotely . | . . . . . . . . . . . . . . . . . . . . . . . . . . . . . . . Salvage Created 16942 | 248 1185 . . 32 41 627 1458 554 330 218 188 . 171 2285 1628 116 223 554 133 250 . 503 842 1008 137 251 283 905 1215 1557 Parts 812 | 15 75 . . 3 7 32 78 30 16 13 2 . 11 103 50 1 17 27 12 3 . 20 28 38 3 20 14 47 63 84 Haulers Intercepted 14 | . 2 . . . . . 5 . . 1 . . . 2 . 1 . 1 . . . . 2 . . . . . . . Recyclers Shooed 9 | . 2 . . . . . . . . . . . . 4 . . . . . . . . 2 . . . . . 1 . Parts Field Recycled . | . . . . . . . . . . . . . . . . . . . . . . . . . . . . . . . Retrieved Matter . | . . . . . . . . . . . . . . . . . . . . . . . . . . . . . . . Parts Self-Destructed 49 | . . . . . . . . . . 13 5 . 7 . . . . . 11 2 . 11 . . . . . . . . Prevented 5 | . . . . . . . . . . 1 . . . . . . . . . . . 4 . . . . . . . . Kills | -11 -10 -10 -10 -9 -8 -8 -8 -8 -7 -7 -7 -7 -6 -6 -6 -6 -6 -5 -5 -5 -5 -4 -4 -4 -4 -4 -4 -3 -2 -1 ------- Run | Yrd Mat Min Exi Min Mat Gar Mat Gar Fac Low Low Dat Pro Fac Gar Fac Gar Fac Upp Upp Zhi Pro Fac Ext Cet Arc Hub Res Res Acc Combat Hostiles Destroyed 254 | . 10 . . . 8 23 27 20 10 3 . . 12 25 6 . 5 9 12 . . 4 9 12 1 . 5 15 19 19 Melee 20 | . . . . . . . . 3 . 3 . . 2 6 . . 3 . 2 . . 1 . . . . . . . . Guns 29 | . 5 . . . . . 11 . . . . . . 10 3 . . . . . . . . . . . . . . . Cannons 121 | . 3 . . . 1 7 10 10 10 . . . 4 9 3 . 1 1 . . . 2 8 8 1 . 4 10 12 17 AOE 67 | . 2 . . . 7 16 5 7 . . . . 5 . . . 1 7 10 . . . . . . . . 3 4 . Classes Destroyed 20 | 3 5 . . . 1 5 2 . 1 1 . . 1 . 1 . . . . . . . . . . . . . . . Worker 33 | 2 14 . . 2 . . 5 . . . . . . 2 . . . 4 . . . . . . . . 1 1 2 . Builder 21 | . 4 . . . . . 2 . . . . . . 4 . . . . . . . . 1 2 . . 1 2 3 2 Tunneler 8 | 5 1 . . . . . 1 . . . . . . 1 . . . . . . . . . . . . . . . . Hauler 14 | . 2 . . . . . 5 . . 1 . . . 2 . 1 . 1 . . . . 2 . . . . . . . Recycler 19 | 1 3 . . . . . 2 . . . . . . 6 . . . 1 . . . . 1 1 . . . . 2 2 Mechanic 2 | . . . . . . . 1 . 1 . . . . . . . . . . . . . . . . . . . . . Operator 9 | . 1 . . . . . . . . . . . . . . . . . . . . . . . . 7 . . . 1 Drone 2 | . . . . . . . . . . . . . 2 . . . . . . . . . . . . . . . . . Watcher 15 | . 3 . . . . . 4 . . . . . . 5 . . . . . . . . 1 . . . . 1 1 . Swarmer 67 | . . . . . 8 7 8 5 . . . . 7 6 . . 1 4 12 . . . . . . . . . 4 5 Cutter 1 | . . . . . . . . . . . . . . . 1 . . . . . . . . . . . . . . . Grunt 71 | . 10 . . . . 7 11 15 5 2 . . 2 5 . . 1 1 . . . 2 1 4 1 . . 4 . . Brawler 5 | . . . . . . 1 . . 1 . . . . . . . . 2 . . . . . . . . . 1 . . Duelist 6 | . . . . . . 1 1 . 1 . . . 1 1 . . . . . . . . . 1 . . . . . . Protector 2 | . . . . . . . . . 1 . . . . 1 . . . . . . . . . . . . . . . . Sentry 29 | . . . . . . 5 6 . 1 . . . . 7 . . 1 . . . . . 1 5 . . . 1 . 2 Specialist 2 | . . . . . . 1 . . . . . . . . . . . 1 . . . . . . . . . . . . Hunter 20 | . . . . . . . 1 . . . . . . . . . . . . . . 3 1 2 . . 1 . 8 4 Programmer 49 | . . . . . . 1 . . 1 . . . . 5 5 . 2 1 . . . . 6 . . . 4 9 7 8 Decomposer 1 | . . . . . . . . . . . . . . . . . . . 1 . . . . . . . . . . . Thief 1 | . . . . . . . . . . 1 . . . . . . . . . . . . . . . . . . . . Thug 1 | . . . . . . . . . . . . . . . . . . . . . . . . . 1 . . . . . Best Kill Streak 11 | 6 6 . . 2 8 10 9 6 3 2 . . 3 4 3 1 1 4 5 . . 2 4 3 1 2 2 7 11 6 Combat Bots Only 10 | . 4 . . . 8 10 6 6 3 2 . . 3 3 3 . 1 4 5 . . 2 3 2 1 . 2 5 6 4 Max Kills in Single Turn 7 | 1 2 . . 1 7 3 5 2 1 1 . . 3 2 1 1 1 4 4 . . 1 1 1 1 1 1 2 2 2 Gunslinging . | . . . . . . . . . . . . . . . . . . . . . . . . . . . . . . . Exploded 7 | . 2 . . . 7 3 2 2 . . . . 3 . . . 1 4 4 . . . . . . . . 1 2 . Melee 1 | . . . . . . . . 1 . 1 . . 1 1 . . 1 . 1 . . 1 . . . . . . . . Uniques/NPCs Destroyed . | . . . . . . . . . . . . . . . . . . . . . . . . . . . . . . . Combat | -11 -10 -10 -10 -9 -8 -8 -8 -8 -7 -7 -7 -7 -6 -6 -6 -6 -6 -5 -5 -5 -5 -4 -4 -4 -4 -4 -4 -3 -2 -1 -------- Run | Yrd Mat Min Exi Min Mat Gar Mat Gar Fac Low Low Dat Pro Fac Gar Fac Gar Fac Upp Upp Zhi Pro Fac Ext Cet Arc Hub Res Res Acc Hostile Shots Fired 1873 | . 33 . . . 13 88 82 60 69 77 1 . 93 263 49 . 35 59 40 . . 59 43 56 11 . 136 188 272 146 Missed 517 | . 10 . . . 3 22 25 18 24 19 1 . 32 82 7 . 10 21 22 . . 15 14 10 4 . 32 39 68 39 Damage Taken 24972 | . 329 . . . 109 1274 754 705 569 857 . . 1100 1558 667 . 355 881 461 . . 751 647 562 180 21 2545 3650 4641 2356 Core 2676 | . 61 . . . 15 177 142 68 58 367 . . 222 117 . . 54 20 94 . . 47 19 9 15 . 193 137 786 75 Absorbed by Shields 1232 | . . . . . . . 66 17 . 4 . . . 581 . . . . . . . . 80 400 76 8 . . . . Reduced by Siege Mode 1491 | . . . . . . . . . . . . . . . . . . . . . . . 37 26 . . 26 679 540 183 Redirected to Shielding 206 | . 3 . . . . 49 . . . . . . . . . . . . . . . . . . . . . . . 154 Ignored by Resistances 26 | . . . . . . . . . . . . . . . 18 . 8 . . . . . . . . . . . . . Regen/Repaired (Parts) 706 | . . . . . . . . . . . . . . . . . . 138 89 111 . 155 154 53 6 . . . . . Core Remaining (%) 67 | 100 . . . 75 . . . 26 . . . . 7 . . . 79 . . . . 83 . . . . 79 89 45 95 Volleys Fired 1222 | 21 261 . . 3 5 89 94 39 66 3 5 . 20 81 39 . 53 26 8 1 3 19 66 42 9 25 23 82 79 60 Largest 2 | 2 2 . . 2 2 2 2 2 2 1 1 . 2 2 2 . 2 2 1 1 1 2 2 2 2 2 2 2 2 2 Hottest 240 | 60 100 . . 95 140 115 126 96 96 45 48 . 96 123 120 . 120 151 30 98 7 156 225 240 225 155 155 203 203 240 Shots Fired 1896 | 42 332 . . 6 8 122 180 57 123 3 5 . 35 151 55 1 56 35 8 1 3 30 104 75 18 50 42 107 140 107 Gun 393 | 42 125 . . . . 3 116 . . 1 . . . 89 16 . 1 . . . . . . . . . . . . . Cannon 1285 | . 203 . . 6 6 85 48 46 114 . 5 . 31 60 22 1 1 22 . 1 . 24 102 71 18 49 41 99 123 107 Launcher 86 | . 2 . . . 2 22 10 8 . 1 . . 4 . . . 3 2 7 . . . . . . . . 8 17 . Special 132 | . 2 . . . . 12 6 3 9 1 . . . 2 17 . 51 11 1 . 3 6 2 4 . 1 1 . . . Kinetic 544 | 21 91 . . 3 . 26 39 46 114 . 5 . 31 114 16 . 1 9 . . . . 28 . . . . . . . Thermal 999 | . 197 . . 3 6 62 121 . . . . . . 35 22 1 1 13 . 1 . . 68 71 18 49 41 60 123 107 Explosive 86 | . 2 . . . 2 22 10 8 . 1 . . 4 . . . 3 2 7 . . . . . . . . 8 17 . Electromagnetic 137 | 21 42 . . . . . 4 . . 1 . . . . . . . . . . . 24 6 . . . . 39 . . Robot Hit Streak 31 | 9 12 . . 6 1 24 11 6 16 2 . . 4 27 11 . 7 5 6 . 9 12 12 31 3 7 22 24 27 16 Robot Miss Streak 9 | 4 4 . . 1 1 3 5 2 2 1 . . 6 4 3 . 2 2 1 . . 9 2 2 3 3 2 2 3 3 Penetration Max 1 | . . . . . . . . . . . . . . 1 . . . . . . . . . . . . . . . . Secondary Targets 2 | . 2 . . . . . . . . . . . . . . . . . . . . . . . . . . . . . Max Gunslinging Chain 1 | . 1 . . . . . . . . . . . . . . . . . . . . . . . . . . . . . Shots Hit Robots 1363 | 28 96 . 135 3 2 65 116 40 53 14 6 . 25 142 113 2 41 36 13 6 3 17 45 58 9 31 30 82 84 68 Core Hits 646 | 8 46 . . 2 8 54 75 35 25 4 2 . 15 87 35 1 9 16 19 4 . 10 20 23 3 13 11 43 53 25 Critical Kills 15 | . 1 . . . . . . . . . . . . 1 . . . . . . . . 3 3 . 1 1 1 2 2 Critical Parts Destroyed 3 | . . . . . . . . . . . . . 1 2 . . . . . . . . . . . . . . . . Critical Strikes 61 | 1 3 . . . . 1 9 5 . 1 . . 1 12 6 . 2 3 3 . . 1 3 3 . 1 1 1 2 2 Burn 9 | . . . . . . . 6 . . . . . . 3 . . . . . . . . . . . . . . . . Meltdown 14 | . 1 . . . . . . . . . . . . . . . . . . . . . 3 3 . 1 1 1 2 2 Destroy 3 | . . . . . . . . . . . . . . 3 . . . . . . . . . . . . . . . . Blast 7 | . . . . . . 1 3 1 . . . . . 2 . . . . . . . . . . . . . . . . Corrupt 3 | 1 2 . . . . . . . . . . . . . . . . . . . . . . . . . . . . . Smash 1 | . . . . . . . . . . . . . 1 . . . . . . . . . . . . . . . . . Sever 19 | . . . . . . . . 4 . 1 . . . 4 6 . 2 2 . . . . . . . . . . . . Impale 5 | . . . . . . . . . . . . . . . . . . 1 3 . . 1 . . . . . . . . Melee Attacks 422 | . . . 135 . . . 1 13 . 16 11 . 20 47 83 4 32 25 10 7 . 4 4 . . . . . . 10 Impact 7 | . . . . . . . . . . . . . 7 . . . . . . . . . . . . . . . . . Slashing 230 | . . . . . . . 1 13 . 16 11 . 13 47 83 4 32 10 . . . . . . . . . . . . Piercing 50 | . . . . . . . . . . . . . . . . . . 15 10 7 . 4 4 . . . . . . 10 Sneak Attacks 169 | . . . 135 . . . 1 1 . 1 . . . 11 . 2 3 10 1 . . 2 . . . . . . . 2 Combat Hostiles 6 | . . . . . . . . 1 . . . . . 1 . . 3 . . . . 1 . . . . . . . . Follow-up Attacks 3 | . . . . . . . . . . . . . 1 2 . . . . . . . . . . . . . . . . Damage Inflicted 47728 | 510 1498 . . 51 345 2796 3215 1920 1558 458 429 . 1249 4798 5551 139 686 2046 1073 383 . 512 2019 2044 414 1182 1253 3536 4672 3391 Guns 4649 | 369 870 . . . . . 1347 . . 16 . . . 1831 216 . . . . . . . . . . . . . . . Cannons 21262 | . 518 . . 51 55 1120 743 630 1286 . . . 429 1241 522 . 38 325 . . . 233 1574 1993 414 1163 1253 2295 2355 3024 Explosions 11024 | 141 110 . . . 290 1676 1059 893 272 . . . 482 219 . . 318 768 835 . . . 445 . . . . 1226 2290 . Melee 10667 | . . . . . . . 66 397 . 442 429 . 338 1507 4813 139 330 953 238 383 . 279 . . . . . . . 353 Ramming 126 | . . . . . . . . . . . . . . . . . . . . . . . . 51 . 19 . 15 27 14 Kinetic 7384 | 164 708 . . 17 . 320 659 630 1286 . . . 429 2297 216 . . 196 . . . . 462 . . . . . . . Thermal 18382 | 141 463 . . 34 55 800 1397 . . . . . . 994 522 . 38 718 . . . . 1179 1993 414 1163 1253 1839 2355 3024 Explosive 9542 | . 73 . . . 290 1676 1059 893 46 . . . 482 . . . 318 179 835 . . . 175 . . . . 1226 2290 . Electromagnetic 1627 | 205 254 . . . . . 34 . 226 16 . . . . . . . . . . . 233 203 . . . . 456 . . Impact 169 | . . . . . . . . . . . . . 169 . . . . . . . . . . . . . . . . . Slashing 8658 | . . . . . . . 66 397 . 442 429 . 169 1507 4813 139 330 366 . . . . . . . . . . . . Piercing 1840 | . . . . . . . . . . . . . . . . . . 587 238 383 . 279 . . . . . . . 353 Highest Corruption 36 | . . . . . . 1 1 1 5 5 . . 8 3 12 12 7 3 3 3 3 8 4 4 4 4 30 36 11 5 Average Corruption 4 | . . . . . . 1 1 1 2 4 . . 8 1 7 9 7 1 3 3 3 5 2 4 4 4 5 17 6 1 Corruption Purged 15 | . . . . . . . . . . 5 . . . . . 5 . . . . . . . . . . . . . 5 Corruption Blocked . | . . . . . . . . . . . . . . . . . . . . . . . . . . . . . . . Effects 395 | . . . . . . 12 11 6 1 7 . . 12 22 48 15 40 6 5 8 4 24 11 43 6 12 15 60 24 3 Message Errors 99 | . . . . . . 1 3 3 . . . . 3 7 13 3 10 2 4 1 1 8 1 15 . 5 3 13 3 . Matter Fused 87 | . . . . . . 2 3 . . 2 . . 1 7 16 3 9 1 . 1 . 7 4 7 4 5 2 8 4 1 Heat Flow Errors 57 | . . . . . . . . 1 . 3 . . 2 2 5 1 10 2 . 3 1 3 2 6 1 . 1 6 7 1 Energy Discharges 61 | . . . . . . 6 2 1 1 1 . . 3 3 6 2 4 1 1 1 1 3 1 3 . . 8 9 4 . Parts Rejected 4 | . . . . . . . . . . . . . . . . . . . . . . . . 1 . . . 1 1 1 Parts Fused 3 | . . . . . . . 1 . . . . . . . . . 1 . . . . . 1 . . . . . . . Data Loss (minor) 42 | . . . . . . 2 . 1 . 1 . . 3 . 3 2 1 . . 1 . 1 1 6 1 1 . 14 4 . Data Loss (major) 15 | . . . . . . . 1 . . . . . . 2 . 1 2 . . 1 1 1 . 2 . . . 3 1 . Misfires 12 | . . . . . . 1 . . . . . . . 1 2 1 1 . . . . 1 1 2 . 1 1 . . . Alerts 5 | . . . . . . . . . . . . . . . 1 1 2 . . . . . . 1 . . . . . . Misdirections 2 | . . . . . . . . . . . . . . . . 1 . . . . . . . . . . . 1 . . Weapon Failures 8 | . . . . . . . 1 . . . . . . . 2 . . . . . . . . . . . . 5 . . Overload Shots 2 | . . . . . . . . . . . . . . . . . . . . . . . 1 . 1 . . . . . Overflow Damage 2632 | . 12 . . . 23 13 67 17 15 23 161 . 164 197 169 32 38 250 255 92 . . 147 27 . 159 106 52 241 372 Projectiles 748 | . . . . . . . 61 . 15 . . . 16 17 29 . . . . . . . 50 2 . 159 106 52 93 148 Explosions 613 | . 12 . . . 23 13 6 17 . . . . 80 67 . . 28 80 42 . . . 97 . . . . . 148 . Melee 1271 | . . . . . . . . . . 23 161 . 68 113 140 32 10 170 213 92 . . . 25 . . . . . 224 Knockbacks 32 | . 1 . . 1 . 2 1 5 6 . . . 4 5 . . . 1 . . . . 5 . . . . . . 1 Impact 3 | . . . . . . . . . . . . . 2 . . . . . . . . . . . . . . . . 1 Kinetic 28 | . 1 . . 1 . 2 1 4 6 . . . 2 5 . . . 1 . . . . 5 . . . . . . . Secondary 1 | . . . . . . . . 1 . . . . . . . . . . . . . . . . . . . . . . Self-Inflicted Damage 1120 | . 39 . . . . 248 44 . . . . . 86 . . . 22 . 80 . . . 145 . . . . 140 316 . Shots 33 | . 1 . . . . 8 4 . . . . . 2 . . . 1 . 3 . . . 2 . . . . 2 10 . Rammed 9 | . . . . . . . . . . . . . . . . . . . . . . . . 2 . 1 . 3 2 1 Targets Rammed 9 | . . . . . . . . . . . . . . . . . . . . . . . . 2 . 1 . 3 2 1 Kicked . | . . . . . . . . . . . . . . . . . . . . . . . . . . . . . . . Crushed . | . . . . . . . . . . . . . . . . . . . . . . . . . . . . . . . Highest Temperature 545 | . 220 . . 99 138 240 266 132 186 247 . . 209 317 227 202 301 322 352 146 190 300 298 545 289 230 247 541 307 324 Average Temperature 85 | . 78 . . 51 51 67 72 36 49 90 . . 55 90 62 76 63 79 129 59 97 125 95 142 113 70 61 144 76 102 Received Heat Transfer 3487 | . 186 . . . 9 342 218 324 189 537 . . 246 396 30 . 51 126 72 . . 39 37 99 33 . 365 143 . 45 Effects 40 | . 1 . . . . . . . . . . . . 1 . . 5 3 . . . 6 1 12 . . . 6 . 5 Shutdowns 6 | . . . . . . . . . . . . . . . . . . . . . . . . 4 . . . 2 . . Energy Bleed 6 | . . . . . . . . . . . . . . 1 . . 1 . . . . . 1 1 . . . 1 . 1 Interference 23 | . 1 . . . . . . . . . . . . . . . 4 3 . . . 6 . 5 . . . . . 4 Matter Decay 1 | . . . . . . . . . . . . . . . . . . . . . . . . 1 . . . . . . Short Circuit 3 | . . . . . . . . . . . . . . . . . . . . . . . . 1 . . . 2 . . Damage (minor) 1 | . . . . . . . . . . . . . . . . . . . . . . . . . . . . 1 . . Siege Activations 32 | . . . . . . . . . . . . . . . 1 . . . . . . . 4 6 . 1 2 3 7 8 Total Turns 544 | . . . . . . . . . . . . . . . 1 . . . . . . . 61 68 . 2 43 131 121 117 Longest Duration 57 | . . . . . . . . . . . . . . . 1 . . . . . . . 37 25 . 2 30 57 25 47 Robots Corrupted 5 | . . . . . . . . . . . . . 1 . . . . . . . . 1 1 1 . . . 1 . . Combat Hostiles 4 | . . . . . . . . . . . . . 1 . . . . . . . . 1 . 1 . . . 1 . . Parts Fried 26 | 1 2 . . . . . 1 . . . . . . . . . . . . . . 3 3 5 . . . 11 . . Impact Corruptions 4 | . . . . . . . . . . . . . 2 . . . . . . . . . . 2 . . . . . . Robots Melted 17 | . 1 . . . . . 1 . . . . . . . . . . 1 . . . . 3 3 . 1 1 1 3 2 Combat Hostiles 13 | . . . . . . . 1 . . . . . . . . . . 1 . . . . 1 3 . . 1 1 3 2 Parts Melted 64 | . 2 . . . 1 1 4 . . . . . . 6 . . 1 . . . . . 4 9 1 1 2 9 10 13 Heat Transferred 23651 | 200 938 . . 74 100 1550 3441 . . . . . . 1950 624 . 50 600 . . . . 1474 2223 447 1355 1192 2118 2873 2442 Parts Sabotaged 2 | . . . . . . . . . . . . . . . . . . . . . . . . . . . . . . 2 Parts Stolen 1 | . . . . . . . . . . 1 . . . . . . . . . . . . . . . . . . . . Parts Stripped . | . . . . . . . . . . . . . . . . . . . . . . . . . . . . . . . Power Chain Reactions 4 | 3 . . . . . . . . . . . . . . . . . . . . . . 1 . . . . . . . Alert | -11 -10 -10 -10 -9 -8 -8 -8 -8 -7 -7 -7 -7 -6 -6 -6 -6 -6 -5 -5 -5 -5 -4 -4 -4 -4 -4 -4 -3 -2 -1 ------- Run | Yrd Mat Min Exi Min Mat Gar Mat Gar Fac Low Low Dat Pro Fac Gar Fac Gar Fac Upp Upp Zhi Pro Fac Ext Cet Arc Hub Res Res Acc Peak Influence 1530 | 40 613 238 . 10 257 1421 931 1425 1002 . . . . 681 1295 767 1530 1140 . . . . 453 325 433 535 364 292 621 924 Initial 802 | . 26 238 . . 3 167 692 584 747 . . . . 159 476 669 536 802 . . . . 9 221 101 173 28 131 164 357 Average 526 | 13 335 238 . 9 72 904 683 1057 835 . . . . 333 944 704 998 957 . . . . 122 171 304 284 243 108 283 535 Maximum Alert Level 4 | . 2 1 . . 1 4 3 4 3 . . . . 2 4 3 4 4 . . . . 2 1 2 2 1 1 2 3 Low Security (%) 25 | 100 12 . . 100 74 3 . . . . . . . 20 . . . . . . . . 75 62 12 47 37 87 39 . Level 1 21 | . 59 100 . . 25 1 . . . . . . . 58 . . . . . . . . 17 37 42 27 62 12 35 20 Level 2 21 | . 27 . . . . 34 58 7 . . . . . 21 30 52 20 3 . . . . 7 . 45 24 . . 25 63 Level 3 20 | . . . . . . 18 41 60 100 . . . . . 33 47 37 73 . . . . . . . . . . . 16 Level 4 10 | . . . . . . 41 . 32 . . . . . . 36 . 42 23 . . . . . . . . . . . . Level 5 . | . . . . . . . . . . . . . . . . . . . . . . . . . . . . . . . High Security . | . . . . . . . . . . . . . . . . . . . . . . . . . . . . . . . Max Security . | . . . . . . . . . . . . . . . . . . . . . . . . . . . . . . . Squads Dispatched 68 | . 4 . . 1 . . 5 . 5 . . . . 12 . 1 . 8 . . . . 9 . 1 . 5 4 6 7 Investigation 15 | . 3 . . 1 . . 3 . . . . . . 1 . . . 2 . . . . 2 . 1 . 1 . 1 . Extermination 20 | . . . . . . . . . 1 . . . . 3 . . . 1 . . . . 3 . . . 2 4 3 3 Reinforcement 10 | . 1 . . . . . 1 . 2 . . . . . . . . 1 . . . . 1 . . . 2 . 2 . Assault 10 | . . . . . . . 1 . 2 . . . . 1 . 1 . 4 . . . . . . . . . . . 1 Garrison 13 | . . . . . . . . . . . . . . 7 . . . . . . . . 3 . . . . . . 3 Intercept . | . . . . . . . . . . . . . . . . . . . . . . . . . . . . . . . Searches Triggered . | . . . . . . . . . . . . . . . . . . . . . . . . . . . . . . . Construction Impeded . | . . . . . . . . . . . . . . . . . . . . . . . . . . . . . . . Haulers Reinforced . | . . . . . . . . . . . . . . . . . . . . . . . . . . . . . . . Active Scanning Responses . | . . . . . . . . . . . . . . . . . . . . . . . . . . . . . . . Cargo Convoy Interrupts . | . . . . . . . . . . . . . . . . . . . . . . . . . . . . . . . Alert ID Control Effect 26 | . . . . . . . . 1 1 . . . . . 9 . 6 . 1 . . 1 1 3 . . 3 . . . Stealth | -11 -10 -10 -10 -9 -8 -8 -8 -8 -7 -7 -7 -7 -6 -6 -6 -6 -6 -5 -5 -5 -5 -4 -4 -4 -4 -4 -4 -3 -2 -1 --------- Run | Yrd Mat Min Exi Min Mat Gar Mat Gar Fac Low Low Dat Pro Fac Gar Fac Gar Fac Upp Upp Zhi Pro Fac Ext Cet Arc Hub Res Res Acc Distress Signals 20 | . 2 . . . 2 . 3 . . . . . . 3 . 2 . . . . . . 1 1 1 . 5 . . . Communications Jammed 223 | . . . . . . . . . . . . . . . . . . 50 . . . . . 19 71 . 35 6 34 8 Distress Signals 222 | . . . . . . . . . . . . . . . . . . 50 . . . . . 19 71 . 34 6 34 8 Times Spotted 548 | . 14 . . . 11 32 50 28 28 8 2 . 14 40 32 4 29 50 13 . . 10 17 20 9 24 23 28 31 31 Peak Tracking Total 11 | . 4 . . . 8 6 4 7 7 5 3 . 4 5 7 2 5 8 5 . . 3 4 3 5 1 11 5 7 6 Tactical Retreats 33 | . . . . . . 3 5 2 1 1 . . 3 . 2 2 . 9 . . . 1 . . . . . . 1 3 Traps | -11 -10 -10 -10 -9 -8 -8 -8 -8 -7 -7 -7 -7 -6 -6 -6 -6 -6 -5 -5 -5 -5 -4 -4 -4 -4 -4 -4 -3 -2 -1 ------- Run | Yrd Mat Min Exi Min Mat Gar Mat Gar Fac Low Low Dat Pro Fac Gar Fac Gar Fac Upp Upp Zhi Pro Fac Ext Cet Arc Hub Res Res Acc Traps Triggered 21 | . . . . . . 1 1 5 1 . . . . 3 1 . 2 2 1 . . . . . . . 2 1 1 . Indirectly 1 | . . . . . . . . . 1 . . . . . . . . . . . . . . . . . . . . . Trap Hack Attempts . | . . . . . . . . . . . . . . . . . . . . . . . . . . . . . . . Triggered . | . . . . . . . . . . . . . . . . . . . . . . . . . . . . . . . Disarmed . | . . . . . . . . . . . . . . . . . . . . . . . . . . . . . . . Reprogrammed . | . . . . . . . . . . . . . . . . . . . . . . . . . . . . . . . Reused . | . . . . . . . . . . . . . . . . . . . . . . . . . . . . . . . Traps Extracted . | . . . . . . . . . . . . . . . . . . . . . . . . . . . . . . . Installed . | . . . . . . . . . . . . . . . . . . . . . . . . . . . . . . . Triggered . | . . . . . . . . . . . . . . . . . . . . . . . . . . . . . . . Machines | -11 -10 -10 -10 -9 -8 -8 -8 -8 -7 -7 -7 -7 -6 -6 -6 -6 -6 -5 -5 -5 -5 -4 -4 -4 -4 -4 -4 -3 -2 -1 ---------- Run | Yrd Mat Min Exi Min Mat Gar Mat Gar Fac Low Low Dat Pro Fac Gar Fac Gar Fac Upp Upp Zhi Pro Fac Ext Cet Arc Hub Res Res Acc Machines Disabled 103 | . 26 . . . 1 6 2 4 7 . . . . 8 5 1 7 8 . . . . 11 2 2 4 1 5 1 2 Max in Single Turn 6 | . 3 . . . 1 1 2 1 4 . . . . 2 1 1 2 6 . . . . 3 1 2 1 . 1 1 1 Garrison Access 4 | . . . . . . . . . . . . . . . . . . . . . . . . . . . . 2 . 2 Garrison Relay 18 | . . . . . . 5 . 3 . . . . . . 5 . 5 . . . . . . . . . . . . . Phase Generator 1 | . . . . . . . . 1 . . . . . . . . . . . . . . . . . . . . . . Network Hub 1 | . . . . . . . . . . . . . . . . . . . . . . . . . . . 1 . . . Machines Repaired . | . . . . . . . . . . . . . . . . . . . . . . . . . . . . . . . Machines Dismantled 1 | . . . . . . . . 1 . . . . . . . . . . . . . . . . . . . . . . Machines Sabotaged 1 | . . . . . . . . . . . . . . . . . . . . . . . . . . . 1 . . . Overloaded Fab Kills . | . . . . . . . . . . . . . . . . . . . . . . . . . . . . . . . Hacking | -11 -10 -10 -10 -9 -8 -8 -8 -8 -7 -7 -7 -7 -6 -6 -6 -6 -6 -5 -5 -5 -5 -4 -4 -4 -4 -4 -4 -3 -2 -1 --------- Run | Yrd Mat Min Exi Min Mat Gar Mat Gar Fac Low Low Dat Pro Fac Gar Fac Gar Fac Upp Upp Zhi Pro Fac Ext Cet Arc Hub Res Res Acc Machines Accessed 113 | . 10 . 5 1 2 2 12 3 2 1 2 4 . 14 1 7 2 8 . . 9 1 10 2 3 1 1 2 3 5 Terminals 60 | . 7 . . . 1 2 9 3 . 1 . . . 9 1 3 2 4 . . . 1 6 1 3 . 1 . 2 4 Fabricators 9 | . . . . . . . . . 1 . . . . 2 . 1 . 3 . . . . 2 . . . . . . . Repair Stations 5 | . 1 . . . . . 1 . 1 . . . . . . 1 . . . . . . . 1 . . . . . . Recycling Units 6 | . 2 . . . . . 1 . . . . . . 1 . 1 . 1 . . . . . . . . . . . . Scanalyzers . | . . . . . . . . . . . . . . . . . . . . . . . . . . . . . . . Garrison Access 11 | . . . . . 1 . 1 . . . . . . 2 . 1 . . . . . . 2 . . . . 2 1 1 Total Hacks 373 | . 33 . 50 1 4 2 30 4 2 1 8 32 . 33 1 12 3 15 . . 48 1 27 5 7 25 2 7 10 10 Successful 273 | . 18 . 50 1 1 2 19 1 1 1 8 32 . 17 . 5 1 7 . . 48 1 18 2 2 25 1 4 3 5 Failed 99 | . 15 . . . 3 . 10 3 1 . . . . 16 1 7 2 8 . . . . 9 3 5 . 1 3 7 5 Catastrophic 19 | . 1 . . . . . 1 1 1 . . . . 3 . 2 1 4 . . . . . . 1 . . 1 2 1 Database Lockouts 1 | . . . . . . . 1 . . . . . . . . . . . . . . . . . . . . . . . Manual 130 | . 28 . 2 . 3 . 25 . 2 . . . . 20 . 10 . 8 . . . . 15 2 1 . 2 3 5 4 Terminals 145 | . 30 . . . 3 2 24 4 . 1 . . . 20 1 5 3 7 . . . 1 19 1 7 . 2 . 7 8 Fabricators 21 | . . . . . . . . . 1 . . . . 8 . 2 . 7 . . . . 3 . . . . . . . Repair Stations 10 | . 1 . . . . . 2 . 1 . . . . . . 2 . . . . . . . 4 . . . . . . Recycling Units 6 | . 2 . . . . . 1 . . . . . . 1 . 1 . 1 . . . . . . . . . . . . Scanalyzers . | . . . . . . . . . . . . . . . . . . . . . . . . . . . . . . . Garrison Access 27 | . . . . . 1 . 3 . . . . . . 4 . 2 . . . . . . 5 . . . . 7 3 2 Terminal Hacks 192 | . 8 . 50 1 . 2 4 1 . 1 8 32 . 1 . . 1 . . . 48 1 5 . 2 25 . . . 2 Record 132 | . . . 49 . . . . . . 1 7 11 . . . . . . . . 36 1 . . 2 25 . . . . Part Schematic 17 | . . . . . . . . . . . . 13 . . . . . . . . 4 . . . . . . . . . Robot Schematic 5 | . . . . . . . . . . . . 5 . . . . . . . . . . . . . . . . . . Robot Analysis 12 | . 6 . . . . . 2 . . . . . . . . . . . . . 4 . . . . . . . . . Prototype ID Bank 7 | . . . . . . . . . . . . 3 . . . . . . . . 4 . . . . . . . . . Open Door 4 | . . . . 1 . . . 1 . . 1 . . . . . . . . . . . . . . . . . . 1 Level Access Points 1 | . . . . . . . . . . . . . . . . . . . . . . . . . . . . . . 1 Branch Access Points 1 | . . . . . . . . . . . . . . . . . . . . . . . 1 . . . . . . . Emergency Access Points 1 | . . . . . . 1 . . . . . . . . . . . . . . . . . . . . . . . . Unreport Threat 1 | . . . . . . . 1 . . . . . . . . . . . . . . . . . . . . . . . Locate Traps 4 | . 2 . . . . . 1 . . . . . . . . . . . . . . . 1 . . . . . . . Recall Investigation 1 | . . . . . . . . . . . . . . . . . . . . . . . 1 . . . . . . . Recall Reinforcements 1 | . . . . . . . . . . . . . . . . . . . . . . . 1 . . . . . . . Hauler Manifests 2 | . . . . . . . . . . . . . . 1 . . . . . . . . 1 . . . . . . . Garrison Registry 1 | . . . . . . . . . . . . . . . . . 1 . . . . . . . . . . . . . Security Stations 1 | . . . . . . 1 . . . . . . . . . . . . . . . . . . . . . . . . Derelict Proto ID Bank 1 | . . . 1 . . . . . . . . . . . . . . . . . . . . . . . . . . . Fabricator Hacks 7 | . . . . . . . . . . . . . . 2 . . . 4 . . . . 1 . . . . . . . Load Schematic 5 | . . . . . . . . . . . . . . 1 . . . 3 . . . . 1 . . . . . . . Build 2 | . . . . . . . . . . . . . . 1 . . . 1 . . . . . . . . . . . . Repair Station Hacks 2 | . . . . . . . 1 . . . . . . . . . . . . . . . . 1 . . . . . . Scan Component 2 | . . . . . . . 1 . . . . . . . . . . . . . . . . 1 . . . . . . Recycling Unit Hacks . | . . . . . . . . . . . . . . . . . . . . . . . . . . . . . . . Scanalyzer . | . . . . . . . . . . . . . . . . . . . . . . . . . . . . . . . Garrison Access Hacks 18 | . . . . . 1 . 2 . . . . . . 4 . 2 . . . . . . 2 . . . . 4 1 2 Unlock Access 5 | . . . . . 1 . 1 . . . . . . 2 . 1 . . . . . . . . . . . . . . Seal Access 3 | . . . . . . . . . . . . . . . . . . . . . . . . . . . . 2 . 1 Coupler Status 10 | . . . . . . . 1 . . . . . . 2 . 1 . . . . . . 2 . . . . 2 1 1 Unauthorized Hacks 54 | . 10 . . . . . 12 . 1 . . . . 10 . 3 . 3 . . . . 10 1 . . 1 . 2 1 Terminals 38 | . 7 . . . . . 10 . . . . . . 8 . . . 2 . . . . 8 . . . 1 . 1 1 Assimilate 1 | . . . . . . . . . . . . . . . . . . . . . . . 1 . . . . . . . Botnet 10 | . 2 . . . . . 2 . . . . . . 2 . . . . . . . . 2 . . . . . 1 1 Disrupt 1 | . . . . . . . . . . . . . . 1 . . . . . . . . . . . . . . . . Skim 25 | . 5 . . . . . 8 . . . . . . 5 . . . 2 . . . . 5 . . . . . . . Sabotage 1 | . . . . . . . . . . . . . . . . . . . . . . . . . . . 1 . . . Fabricators 2 | . . . . . . . . . . . . . . 1 . 1 . . . . . . . . . . . . . . Haulers 2 | . . . . . . . . . . . . . . 1 . 1 . . . . . . . . . . . . . . Repair Stations 4 | . 1 . . . . . . . 1 . . . . . . 1 . . . . . . . 1 . . . . . . Mechanics 4 | . 1 . . . . . . . 1 . . . . . . 1 . . . . . . . 1 . . . . . . Recycling Units 6 | . 2 . . . . . 1 . . . . . . 1 . 1 . 1 . . . . . . . . . . . . Recyclers 3 | . . . . . . . . . . . . . . 1 . 1 . 1 . . . . . . . . . . . . Tunnel 3 | . 2 . . . . . 1 . . . . . . . . . . . . . . . . . . . . . . . Scanalyzers . | . . . . . . . . . . . . . . . . . . . . . . . . . . . . . . . Garrison Access 4 | . . . . . . . 1 . . . . . . . . . . . . . . . 2 . . . . . 1 . Eject 4 | . . . . . . . 1 . . . . . . . . . . . . . . . 2 . . . . . 1 . Data Cores Recovered 1 | . . . . . . . . . . . . . . . . . . . . . . . . . . . . . . 1 Used 1 | . . . . . . . . . . . . . . . . . . . . . . . . . . . . . . 1 Hacking Detections 76 | . 8 . . . 2 1 11 2 1 . . . . 14 1 6 2 7 . . . . 9 1 3 . . 2 3 3 Full Trace Events 4 | . . . . . . . . . . . . . . 1 . . . 2 . . . . . . 1 . . . . . Feedback Events 1 | . . . . . . . . . . . . . . . . . . 1 . . . . . . . . . . . . Corruption 1 | . . . . . . . . . . . . . . . . . . 1 . . . . . . . . . . . . Feedback Blocked . | . . . . . . . . . . . . . . . . . . . . . . . . . . . . . . . Robot Schematics Acquired 5 | . . . . . . . . . . . . 5 . . . . . . . . . . . . . . . . . . Robots Built . | . . . . . . . . . . . . . . . . . . . . . . . . . . . . . . . Authchips . | . . . . . . . . . . . . . . . . . . . . . . . . . . . . . . . Time . | . . . . . . . . . . . . . . . . . . . . . . . . . . . . . . . Total Robot Build Rating . | . . . . . . . . . . . . . . . . . . . . . . . . . . . . . . . Part Schematics Acquired 17 | . . . . . . . . . . . . 13 . . . . . . . . 4 . . . . . . . . . Parts Built 2 | . . . . . . . . . . . . . . 1 . . . 1 . . . . . . . . . . . . Authchips . | . . . . . . . . . . . . . . . . . . . . . . . . . . . . . . . Time 321 | . . . . . . . . . . . . . . 169 . . . 152 . . . . . . . . . . . . Total Part Build Rating 11 | . . . . . . . . . . . . . . 6 . . . 5 . . . . . . . . . . . . Parts Repaired . | . . . . . . . . . . . . . . . . . . . . . . . . . . . . . . . Time . | . . . . . . . . . . . . . . . . . . . . . . . . . . . . . . . Parts Recycled . | . . . . . . . . . . . . . . . . . . . . . . . . . . . . . . . Recycled Matter . | . . . . . . . . . . . . . . . . . . . . . . . . . . . . . . . Retrieved Matter . | . . . . . . . . . . . . . . . . . . . . . . . . . . . . . . . Retrieved Components . | . . . . . . . . . . . . . . . . . . . . . . . . . . . . . . . Parts Scanalyzed . | . . . . . . . . . . . . . . . . . . . . . . . . . . . . . . . Part Schematics Acquired . | . . . . . . . . . . . . . . . . . . . . . . . . . . . . . . . Parts Damaged . | . . . . . . . . . . . . . . . . . . . . . . . . . . . . . . . Bothacking | -11 -10 -10 -10 -9 -8 -8 -8 -8 -7 -7 -7 -7 -6 -6 -6 -6 -6 -5 -5 -5 -5 -4 -4 -4 -4 -4 -4 -3 -2 -1 ------------ Run | Yrd Mat Min Exi Min Mat Gar Mat Gar Fac Low Low Dat Pro Fac Gar Fac Gar Fac Upp Upp Zhi Pro Fac Ext Cet Arc Hub Res Res Acc Used RIF Installer 4 | . . . . . . 1 . 1 . . . . . . 1 . 1 . . . . . . . . . . . . . Signal Jammer 1 | . . . . . . . . . . . . . . . 1 . . . . . . . . . . . . . . . Watcher Feeds 1 | . . . . . . . . . . . . . . . . . 1 . . . . . . . . . . . . . Alert ID Control 1 | . . . . . . . . 1 . . . . . . . . . . . . . . . . . . . . . . Robots Hacked 65 | . . . 4 . . 3 4 3 6 1 . . . 1 7 . 19 3 1 . 3 3 1 4 . 1 1 . . . Non-combat 11 | . . . 3 . . 1 3 . . . . . . . . . . 2 . . . . . 1 . 1 . . . . Combat 54 | . . . 1 . . 2 1 3 6 1 . . . 1 7 . 19 1 1 . 3 3 1 3 . . 1 . . . Robot Hacks Applied 206 | . . . 135 . . 3 6 3 7 1 . . . 1 7 . 22 7 1 . 3 3 1 4 . 1 1 . . . parse_system 147 | . . . 135 . . . 1 . 1 . . . . . . . 4 1 . . 3 . . 1 . 1 . . . . map_walls 1 | . . . . . . . 1 . . . . . . . . . . . . . . . . . . . . . . . purge_threat 6 | . . . . . . . 2 . . . . . . . . . . 4 . . . . . . . . . . . . block_reporting 2 | . . . . . . . 1 . . . . . . . . . . 1 . . . . . . . . . . . . overload_power 1 | . . . . . . . . . 1 . . . . . . . . . . . . . . . . . . . . . reboot_system 5 | . . . . . . . . 1 . . . . . . 2 . 2 . . . . . . . . . . . . . go_dormant 1 | . . . . . . . . . . . . . . . . . 1 . . . . . . . . . . . . . overwrite_iff 13 | . . . . . . 1 1 1 5 . . . . . . . 1 . . . . 2 . 2 . . . . . . streamctrl_high 1 | . . . . . . . . . . . . . . . . . . . . . . . . . . . 1 . . . formatsys_high 27 | . . . . . . 1 . 1 . 1 . . . 1 5 . 13 1 1 . . 1 1 1 . . . . . . formatsys_deep 2 | . . . . . . 1 . . . . . . . . . . 1 . . . . . . . . . . . . . Relay Couplers Released 99 | . . . . . . 21 3 13 . . . . . 7 21 . 22 . . . . . 7 . . . . . 4 1 Ejected 14 | . . . . . . . 3 . . . . . . . . . . . . . . . 7 . . . . . 4 . Machine Destruction 75 | . . . . . . 18 . 13 . . . . . . 21 . 22 . . . . . . . . . . . . 1 Programmers 10 | . . . . . . 3 . . . . . . . 7 . . . . . . . . . . . . . . . . Attached 34 | . . . . . . 3 2 1 2 1 . . . 1 4 . 12 3 . . . . 1 3 . . 1 . . . Fabnet Peak Effective % . | . . . . . . . . . . . . . . . . . . . . . . . . . . . . . . . Robots Rewired 23 | . . . . . . 2 . . . . . . . . 4 . 6 . . . . . . 11 . . . . . . Allies Hacked 2 | . . . . . . . . . . . . . . . . . 2 . . . . . . . . . . . . . Hacks Repelled . | . . . . . . . . . . . . . . . . . . . . . . . . . . . . . . . Allies | -11 -10 -10 -10 -9 -8 -8 -8 -8 -7 -7 -7 -7 -6 -6 -6 -6 -6 -5 -5 -5 -5 -4 -4 -4 -4 -4 -4 -3 -2 -1 -------- Run | Yrd Mat Min Exi Min Mat Gar Mat Gar Fac Low Low Dat Pro Fac Gar Fac Gar Fac Upp Upp Zhi Pro Fac Ext Cet Arc Hub Res Res Acc Total Allies 92 | . . . . . . 8 1 3 5 1 . . 1 1 9 . 25 1 1 . . 3 2 25 5 . 1 . . . Largest Group 19 | . . . . . . 3 2 2 3 1 1 . 1 1 5 . 19 17 1 1 1 3 1 18 18 17 15 . . . Highest-Rated Group 1168 | . . . . . . 77 34 47 76 32 32 . 96 47 119 . 583 559 29 29 29 123 47 947 1168 1168 1029 . . . Highest-Rated Ally 159 | . . . . . . 39 19 31 31 32 32 . 96 47 47 . 51 51 29 29 29 56 47 159 159 144 137 . . . Total Orders 60 | . . . . . . . . . . . . . . 1 13 . 9 16 . . . . 4 . . . 5 10 2 . ROAM 7 | . . . . . . . . . . . . . . . 1 . 2 . . . . . . . . . 4 . . . FOLLOW 4 | . . . . . . . . . . . . . . . . . 2 1 . . . . . . . . 1 . . . EXPLORE 11 | . . . . . . . . . . . . . . . 1 . . . . . . . 2 . . . . 6 2 . RETURN 38 | . . . . . . . . . . . . . . 1 11 . 5 15 . . . . 2 . . . . 4 . . Ally Attacks 700 | . . . . . . 45 2 17 28 . 1 . 10 21 111 . 121 114 2 . . 25 4 43 49 19 88 . . . Total Damage 16666 | . . . . . . 572 15 238 425 . 37 . 232 401 2122 . 2084 2607 39 . . 432 116 1397 1541 895 3513 . . . Kills 120 | . . . . . . 10 1 4 2 . . . . 2 23 . 21 15 1 . . 2 1 8 9 6 15 . . . Allies Corrupted 4 | . . . . . . . . . . . . . . . 1 . . 2 . . . . . . . . 1 . . . Allies Melted 3 | . . . . . . . . . . . . . . . . . . 1 . . . . . 2 . . . . . . Intel | -11 -10 -10 -10 -9 -8 -8 -8 -8 -7 -7 -7 -7 -6 -6 -6 -6 -6 -5 -5 -5 -5 -4 -4 -4 -4 -4 -4 -3 -2 -1 ------- Run | Yrd Mat Min Exi Min Mat Gar Mat Gar Fac Low Low Dat Pro Fac Gar Fac Gar Fac Upp Upp Zhi Pro Fac Ext Cet Arc Hub Res Res Acc Robot Analysis Total 12 | . 6 . . . . . 2 . . . . . . . . . . . . . 4 . . . . . . . . . Derelict Logs Recovered 4 | . . 1 . . . . . . . . . . 2 . . . . . . 1 . . . . . . . . . . Drone Launches 56 | . . . . . . . . . . . . . . 2 18 . 7 16 . . . . 3 . . . . 8 2 . Drone Recoveries 49 | . . . . . . . . . . . . . . 2 18 . 7 14 . . . . 2 . . . . 6 . . Exploration | -11 -10 -10 -10 -9 -8 -8 -8 -8 -7 -7 -7 -7 -6 -6 -6 -6 -6 -5 -5 -5 -5 -4 -4 -4 -4 -4 -4 -3 -2 -1 ------------- Run | Yrd Mat Min Exi Min Mat Gar Mat Gar Fac Low Low Dat Pro Fac Gar Fac Gar Fac Upp Upp Zhi Pro Fac Ext Cet Arc Hub Res Res Acc Turns Passed 29903 | 123 1855 47 704 113 207 1458 1726 1493 634 711 344 93 1078 2258 1640 370 1552 1550 307 624 191 730 1481 1884 340 1487 706 1714 1403 1080 Spaces Moved 18603 | 49 968 50 535 105 151 1033 1121 1064 387 364 202 75 547 1318 833 507 1541 1676 258 240 175 357 836 906 132 306 286 811 770 1000 Core 91 | 1 . . . . . . . . . 31 . . . . . . . . . . . . . . . . . . 59 . Treads 4914 | . 81 . . . . . . . . . . . . 219 549 . . . . . . . 634 906 132 306 286 811 629 361 Legs 6116 | . . . 287 105 151 1033 1121 1064 387 333 202 75 307 431 . . . . . . 61 357 202 . . . . . . . Wheels 2141 | 48 887 50 248 . . . . . . . . . 240 668 . . . . . . . . . . . . . . . . Hover 4620 | . . . . . . . . . . . . . . . 284 507 1541 1676 258 240 114 . . . . . . . . . Flight 721 | . . . . . . . . . . . . . . . . . . . . . . . . . . . . . 82 639 Fastest Speed 32 | 50 80 95 90 90 45 45 60 100 60 50 125 125 115 100 65 65 65 65 65 65 65 120 120 148 148 152 152 156 34 32 Average Speed 108 | 80 96 95 92 90 90 97 102 104 97 157 125 125 160 130 128 65 65 71 65 65 84 120 140 148 151 152 160 174 135 74 Slowest Speed 260 | 95 240 95 95 90 100 105 105 105 110 260 125 125 195 190 240 65 135 135 65 65 120 120 150 148 152 152 170 180 161 145 Overloaded Moves 72 | . . . . . 2 7 14 . 49 . . . . . . . . . . . . . . . . . . . . . Propulsion Burnouts . | . . . . . . . . . . . . . . . . . . . . . . . . . . . . . . . Robots Hopped . | . . . . . . . . . . . . . . . . . . . . . . . . . . . . . . . Cave-ins Triggered . | . . . . . . . . . . . . . . . . . . . . . . . . . . . . . . . Exploration Rate (%) 54 | 4 98 16 95 24 16 89 87 81 10 56 39 74 69 35 71 16 82 43 56 54 63 68 27 93 76 95 75 38 22 31 Regions Visited 30 Branch Regions 15 Pre-discovered Areas 12 | . 3 . 1 . . . 3 . . . . 1 . . . . . . . . 3 . 1 . . . . . . . Known Exits Taken 12 | . . 1 . . 1 . 1 . 1 1 . . 1 1 . 1 . 1 . . . . 1 . . . 1 1 . . Unknown Exits Taken 14 | 1 1 . 1 1 . . . . . . 1 1 . . . . . . 1 1 1 1 . 1 1 1 . . 1 . Scrap Searched 9 | . . . . 1 . . . . . 2 . . . . . . . . 1 1 . 4 . . . . . . . . Spaces Dug 147 | . . . . . 2 . 1 . 13 1 7 . 6 9 3 1 5 11 . 2 . . 29 3 . . 4 2 28 20 Terrain Destroyed 1205 | 10 249 . . . 20 90 80 25 48 17 7 . 62 36 4 2 9 88 29 2 . . 88 15 5 11 9 65 194 40 Melee 42 | . . . . . . . . . . 1 5 . 5 6 3 1 5 6 . 1 . . 3 . . . . . . 6 Projectile 231 | . . . . . 2 1 12 . 22 . 2 . 8 6 1 1 . 9 . 1 . . 37 15 5 11 9 7 48 34 AOE 932 | 10 249 . . . 18 89 68 25 26 16 . . 49 24 . . 4 73 29 . . . 48 . . . . 58 146 . Terrain Rammed . | . . . . . . . . . . . . . . . . . . . . . . . . . . . . . . . Walls Destroyed . | . . . . . . . . . . . . . . . . . . . . . . . . . . . . . . . Machines Disabled . | . . . . . . . . . . . . . . . . . . . . . . . . . . . . . . . Actions | -11 -10 -10 -10 -9 -8 -8 -8 -8 -7 -7 -7 -7 -6 -6 -6 -6 -6 -5 -5 -5 -5 -4 -4 -4 -4 -4 -4 -3 -2 -1 --------- Run | Yrd Mat Min Exi Min Mat Gar Mat Gar Fac Low Low Dat Pro Fac Gar Fac Gar Fac Upp Upp Zhi Pro Fac Ext Cet Arc Hub Res Res Acc Total 25823 | 86 1536 49 676 116 212 1362 1512 1344 517 469 276 74 688 1634 1241 542 2013 1959 369 696 215 624 1033 1368 256 1279 487 994 985 1211 Wait 4393 | 2 235 . . 1 37 151 219 160 46 27 51 . 51 78 209 19 311 163 90 448 18 231 66 320 102 940 151 62 98 107 Move 18572 | 48 967 49 534 104 151 1032 1120 1063 386 363 201 74 546 1317 832 506 1539 1675 257 239 174 356 835 905 131 305 285 810 769 999 Hop . | . . . . . . . . . . . . . . . . . . . . . . . . . . . . . . . Pick Up 239 | 8 15 . . 5 5 24 17 11 1 21 1 . 16 23 20 5 15 11 . . 3 . 15 1 5 2 . 3 7 5 Fast Attach 103 | 7 . . . . . 2 4 1 . 10 2 . 8 7 9 . 4 7 . . 3 3 4 1 1 . 3 12 5 10 Attach 110 | . 2 . . . 4 7 2 4 3 5 . . 5 6 7 1 15 9 . 1 1 1 7 2 . . 5 6 9 8 Detach 57 | . . . . . . 2 1 . 1 . . . 1 . 8 1 11 7 . . 3 2 1 1 2 . 2 6 5 3 Swap 392 | . 47 . 5 2 6 34 36 21 14 14 3 . 17 50 15 2 14 25 4 . 8 7 17 20 2 4 15 5 5 . Drop 197 | . 9 . 2 1 4 21 18 12 . 9 2 . 6 24 19 4 7 10 . . 2 1 18 . 4 2 3 5 6 8 Fire 1222 | 21 261 . . 3 5 89 94 39 66 3 5 . 20 81 39 . 53 26 8 1 3 19 66 42 9 25 23 82 79 60 Melee 416 | . . . 135 . . . 1 13 . 16 11 . 18 43 83 4 32 25 10 7 . 4 4 . . . . . . 10 Ram 2 | . . . . . . . . . . . . . . . . . . . . . . . . . . . . . 2 . Kick . | . . . . . . . . . . . . . . . . . . . . . . . . . . . . . . . Crush 7 | . . . . . . . . . . . . . . . . . . . . . . . . 2 . 1 . 3 . 1 Escape Stasis 23 | . . . . . . . . 9 . . . . . 5 . . 9 . . . . . . . . . . . . . Rewire 80 | . . . . . . . . 1 . 1 . . . . . . 3 1 . . . . . 74 . . . . . . Trap . | . . . . . . . . . . . . . . . . . . . . . . . . . . . . . . . Miscellaneous 10 | . . . . . . . . 10 . . . . . . . . . . . . . . . . . . . . . . Route ------- -11/Scrapyard -10/Materials (discovered 5 exits: [*Mat x3] / [*Min x2]) -10/Mines -10/Exiles (discovered 2 exits: *Min x2) -9/Mines -8/Materials (discovered 2 exits: Fac / Gar) -8/Garrison (discovered 4 exits: *Mat x4) -8/Materials (discovered 4 exits: *Fac x3 / Gar) -8/Garrison (discovered 4 exits: *Fac x3 / [*Mat]) -7/Factory (discovered 3 exits: Fac / *Low x2) -7/Lower Caves -7/Lower Caves (discovered 2 exits: Fac / *Dat) -7/Data Miner -6/Proximity Caves -6/Factory (discovered 5 exits: Fac / *Low x2 / Gar / Gar) -6/Garrison (discovered 3 exits: *Fac x3) -6/Factory (discovered 4 exits: Fac / *Low x2 / Gar) -6/Garrison (discovered 4 exits: *Fac x3 / [*Fac]) -5/Factory (discovered 2 exits: *Fac / *Upp) -5/Upper Caves -5/Upper Caves -5/Zhirov -4/Proximity Caves -4/Factory (discovered 8 exits: *Res x3 / Upp x2 / *Ext x2 / Arm) -4/Extension (discovered 3 exits: *Res x2 / *Cet) -4/Cetus -4/Archives (discovered 3 exits: *Res / *Hub x2) -4/Hub_04(d) (discovered 4 exits: *Res x4) -3/Research (discovered 5 exits: *Res x3 / Qua x2) -2/Research (discovered 2 exits: *Acc / Tes) -1/Access To Epsilon Eridani History --------- Turn | Location | Event 16 | -11/Scrapyard | Discovered new exit (range 15) 124 | -11/Scrapyard | Entered Materials 310 | -10/Materials | Build established: Mutant 463 | -10/Materials | Discovered new exit (range 13) 609 | -10/Materials | Discovered new exit (range 6) 674 | -10/Materials | Discovered new exit (range 8) 877 | -10/Materials | Discovered new exit (range 11) 1007 | -10/Materials | Discovered new exit (range 10) 1450 | -10/Materials | Learned 4 Recycling zone layouts 1498 | -10/Materials | Learned location of 1 exit from Recycling 1560 | -10/Materials | Learned 4 Subcaves zone layouts 1583 | -10/Materials | Learned location of 1 exit from Recycling 1584 | -10/Materials | Learned 2 Storage zone layouts 1589 | -10/Materials | Learned location of 1 exit from Storage 1603 | -10/Materials | Learned 2 Mines zone layouts 1625 | -10/Materials | Loaded intel: 7 terminal locations 1655 | -10/Materials | Learned Storage emergency access door positions 1979 | -10/Materials | Entered Mines 1980 | -10/Mines | Identified exit to Exiles 1992 | -10/Mines | Deemed a non-threat by the Exiles lab entrance 2002 | -10/Mines | YI-UF0 nonchalantly dropped a Grenade Launcher on the ground 2007 | -10/Mines | Learned location of 1 exit from Materials 2026 | -10/Mines | Entered Exiles 2039 | -10/Exiles | Discovered new exit (range 15) 2052 | -10/Exiles | Met 8R-AWN 2064 | -10/Exiles | Met EX-HEX 2128 | -10/Exiles | Met EX-DEC 2156 | -10/Exiles | Learned location of Zion (-6) 2169 | -10/Exiles | Met EX-BIN 2440 | -10/Exiles | Aligned with FarCom system 2441 | -10/Exiles | Given EX-Vault access code 2463 | -10/Exiles | Opened EX-Vault 2468 | -10/Exiles | Found Potential Leg 2470 | -10/Exiles | Found Potential Leg 2490 | -10/Exiles | Warned to stay clear of 0b10 Research branches 2542 | -10/Exiles | Visited The Gauntlet 2722 | -10/Exiles | Discovered new exit (range 10) 2730 | -10/Exiles | Left Exiles lab with Potential Leg 2730 | -10/Exiles | Entered Mines 2768 | -9/Mines | Met a Derelict shopkeep closing up shop 2820 | -9/Mines | Discovered new exit (range 10) 2835 | -9/Mines | Received a Rocket Launcher from a helpful Derelict 2843 | -9/Mines | Entered Materials 2843 | -8/Materials | Evolved 4 slots: Propulsion x2, Utility x2 2844 | -8/Materials | Identified exit to Factory 3028 | -8/Materials | Destroyed 8 combat bots 3050 | -8/Materials | Identified exit to Garrison 3050 | -8/Materials | Entered Garrison 3063 | -8/Garrison | Installed Relay Interface Framework 3100 | -8/Garrison | Triggered checkpoint 3142 | -8/Garrison | Triggered checkpoint 3150 | -8/Garrison | Destroyed 10 combat bots 3272 | -8/Garrison | Discovered new exit (range 10) 3302 | -8/Garrison | Triggered checkpoint 3334 | -8/Garrison | Discovered new exit (range 5) 3457 | -8/Garrison | Discovered new exit (range 17) 3539 | -8/Garrison | Lost 3 parts (1n1u1w) 3545 | -8/Garrison | Build established: Scavenger-Mutant 3598 | -8/Garrison | Triggered checkpoint 3627 | -8/Garrison | Garrison Relay disabled 3653 | -8/Garrison | Triggered checkpoint 3751 | -8/Garrison | Discovered new exit (range 12) 3815 | -8/Garrison | Triggered checkpoint 3877 | -8/Garrison | Garrison Relay disabled 3901 | -8/Garrison | Garrison Relay disabled 3912 | -8/Garrison | Triggered checkpoint 3925 | -8/Garrison | Build established: Bothacker-Mutant 4153 | -8/Garrison | Garrison Relay disabled 4216 | -8/Garrison | Triggered checkpoint 4216 | -8/Garrison | Assimilated ARC 3a with formatsys_deep 4238 | -8/Garrison | Garrison Relay disabled 4261 | -8/Garrison | Learned Materials security intel 4508 | -8/Garrison | Entered Materials 4508 | -8/Materials | Accompanied by 2 allies 4908 | -8/Materials | First assault squad dispatched 4993 | -8/Materials | Core integrity fell below 50% 5011 | -8/Materials | Discovered exit to Factory (range 19) 5230 | -8/Materials | Learned location of 3 exits from Factory 5242 | -8/Materials | Learned location of Lower Caves (-6) 5246 | -8/Materials | Learned 2 Lower Caves zone layouts 5247 | -8/Materials | Learned Factory trap positions 5251 | -8/Materials | Learned 4 Lower Caves zone layouts 5267 | -8/Materials | Learned Storage emergency access door positions 5595 | -8/Materials | Central database locked down 6232 | -8/Materials | Identified exit to Garrison 6234 | -8/Materials | Entered Garrison 6244 | -8/Garrison | Triggered checkpoint 6260 | -8/Garrison | Garrison Relay disabled 6298 | -8/Garrison | Garrison Relay disabled 6346 | -8/Garrison | Triggered checkpoint 6365 | -8/Garrison | Triggered checkpoint 6367 | -8/Garrison | Triggered checkpoint 6584 | -8/Garrison | Phase Generator disabled 6839 | -8/Garrison | Discovered exit to Factory (range 11) 6858 | -8/Garrison | Triggered checkpoint 6910 | -8/Garrison | Expanded RIF knowledge: Alert ID Control 6984 | -8/Garrison | Rescued a captive Derelict 7189 | -8/Garrison | Discovered exit to Factory (range 15) 7244 | -8/Garrison | Triggered checkpoint 7268 | -8/Garrison | Discovered new exit (range 5) 7518 | -8/Garrison | Garrison Relay disabled 7727 | -8/Garrison | Entered Factory 7727 | -7/Factory | Accompanied by 2 allies 7727 | -7/Factory | Evolved 2 slots: Utility x2 7728 | -7/Factory | Identified exit to Lower Caves 7728 | -7/Factory | Identified exit to Factory 7729 | -7/Factory | Loaded intel: 106 trap records 8127 | -7/Factory | First assault squad dispatched 8361 | -7/Factory | Entered Lower Caves 8362 | -7/Lower Caves | Identified exit to Lower Caves 8445 | -7/Lower Caves | Core integrity fell below 50% 8450 | -7/Lower Caves | Encountered a Warlord checkpoint 8455 | -7/Lower Caves | Lost 9 parts (1p4n2u2w) 8742 | -7/Lower Caves | Attracted the attention of an 0b10 checkpoint 9072 | -7/Lower Caves | Entered another Lower Caves area 9072 | -7/Lower Caves | Accompanied by 1 ally 9086 | -7/Lower Caves | Discovered exit to Factory (range 16) 9118 | -7/Lower Caves | Build established: Bothacker-Assassin 9202 | -7/Lower Caves | Learned location of 1 exit from Factory 9202 | -7/Lower Caves | Learned 8 Factory zone layouts 9202 | -7/Lower Caves | Learned Armory stockpile data 9202 | -7/Lower Caves | Learned Factory security intel 9202 | -7/Lower Caves | Learned Factory terminal intel 9385 | -7/Lower Caves | Discovered new exit (range 14) 9404 | -7/Lower Caves | Found Alien Artifact 9404 | -7/Lower Caves | Identified Core Expander 9404 | -7/Lower Caves | Installed Core Expander, added new Power slot 9416 | -7/Lower Caves | Entered Data Miner 9416 | -7/Data Miner | Discovered new exit (range 6) 9433 | -7/Data Miner | Met Data Miner 9461 | -7/Data Miner | Learned location of Section 7 (-2) 9461 | -7/Data Miner | Acquired the access code to Warlord's prototype stash 9483 | -7/Data Miner | Received God Mode back door access code from Data Miner 9509 | -7/Data Miner | Entered Proximity Caves 9519 | -6/Proximity Caves | Spotter reported a threat 9634 | -6/Proximity Caves | Learned Factory terminal intel 9810 | -6/Proximity Caves | Build established: Bothacker-Skirmisher 9930 | -6/Proximity Caves | Escorted by Enhanced Grunt 10119 | -6/Proximity Caves | Core integrity fell below 20% 10163 | -6/Proximity Caves | Lost 7 parts (4n1u2w) 10209 | -6/Proximity Caves | Found Prototype Device 10209 | -6/Proximity Caves | Identified Exp. Thermal Shield 10328 | -6/Proximity Caves | Learned 4 Factory zone layouts 10394 | -6/Proximity Caves | Spotted B-75 Beast 10436 | -6/Proximity Caves | Build established: Scavenger-Assassin 10458 | -6/Proximity Caves | Discovered exit to Factory (range 15) 10587 | -6/Proximity Caves | Entered Factory 10587 | -6/Factory | Evolved 2 slots: Propulsion x2 10588 | -6/Factory | Identified exit to Factory 10589 | -6/Factory | Identified exit to Lower Caves 10591 | -6/Factory | Loaded intel: 26 terminal locations 10791 | -6/Factory | Build established: Scavenger-Mutant 10846 | -6/Factory | Garrison activated, responded to threat 10928 | -6/Factory | Identified exit to Garrison 11185 | -6/Factory | Garrison activated, responded to threat 11224 | -6/Factory | Lost 4 parts (2n2u) 11870 | -6/Factory | Loaded intel: 6 fabricator locations 11929 | -6/Factory | Learned Hub_04(d) stockpile data 11979 | -6/Factory | Learned Hub_04(d) terminal intel 12018 | -6/Factory | Learned 8 Factory zone layouts 12046 | -6/Factory | Learned 4 Proximity Caves zone layouts 12082 | -6/Factory | Loaded intel: 4 garrison access locations 12130 | -6/Factory | Learned Extension trap positions 12186 | -6/Factory | Learned 2 Proximity Caves zone layouts 12189 | -6/Factory | Fabricated Combat Drone Bay? 12217 | -6/Factory | Identified exit to Garrison 12269 | -6/Factory | Garrison activated, responded to threat 12687 | -6/Factory | First assault squad dispatched 12845 | -6/Factory | Entered Garrison 12845 | -6/Garrison | Accompanied by 1 ally 12875 | -6/Garrison | Triggered checkpoint 13100 | -6/Garrison | Garrison Relay disabled 13251 | -6/Garrison | Triggered checkpoint 13273 | -6/Garrison | Triggered checkpoint 13279 | -6/Garrison | Spotted B-75 Beast 13308 | -6/Garrison | Allies destroyed B-75 Beast 13372 | -6/Garrison | Garrison Relay disabled 13372 | -6/Garrison | Garrison Relay disabled 13380 | -6/Garrison | Garrison Relay disabled 13384 | -6/Garrison | Garrison Relay disabled 13452 | -6/Garrison | Build established: Bothacker-Mutant 13751 | -6/Garrison | Discovered new exit (range 21) 13754 | -6/Garrison | Build established: Scavenger-Mutant 13877 | -6/Garrison | Triggered checkpoint 13908 | -6/Garrison | Lost 3 allies 13917 | -6/Garrison | Discovered new exit (range 19) 13955 | -6/Garrison | Expanded RIF knowledge: Signal Jamming 14173 | -6/Garrison | System corruption reached 10% 14219 | -6/Garrison | Discovered new exit (range 13) 14313 | -6/Garrison | Triggered checkpoint 14353 | -6/Garrison | Lost 4 allies 14485 | -6/Garrison | Entered Factory 14488 | -6/Factory | Loaded intel: 26 terminal locations 14757 | -6/Factory | Discovered exit to Lower Caves (range 12) 14799 | -6/Factory | Identified exit to Garrison 14835 | -6/Factory | First assault squad dispatched 14855 | -6/Factory | Entered Garrison 15005 | -6/Garrison | Triggered checkpoint 15035 | -6/Garrison | Triggered checkpoint 15079 | -6/Garrison | Expanded RIF knowledge: Watcher Feeds 15140 | -6/Garrison | Discovered exit to Factory (range 12) 15145 | -6/Garrison | Triggered checkpoint 15153 | -6/Garrison | Triggered checkpoint 15170 | -6/Garrison | Garrison Relay disabled 15186 | -6/Garrison | Discovered new exit (range 5) 15265 | -6/Garrison | Triggered checkpoint 15363 | -6/Garrison | Discovered exit to Factory (range 8) 15376 | -6/Garrison | Discovered exit to Factory (range 62) 15376 | -6/Garrison | Discovered exit to Factory (range 6) 15376 | -6/Garrison | Discovered exit to Factory (range 50) 15376 | -6/Garrison | Discovered new exit (range 60) 15381 | -6/Garrison | Triggered checkpoint 15391 | -6/Garrison | Garrison Relay disabled 15430 | -6/Garrison | Triggered checkpoint 15477 | -6/Garrison | Triggered checkpoint 15498 | -6/Garrison | Garrison Relay disabled 15745 | -6/Garrison | Triggered checkpoint 15768 | -6/Garrison | Assimilated ARC 5a with formatsys_deep 15819 | -6/Garrison | Triggered checkpoint 15824 | -6/Garrison | Garrison Relay disabled 15886 | -6/Garrison | Build established: Botlord-Mutant 16345 | -6/Garrison | Triggered checkpoint 16407 | -6/Garrison | Entered Factory 16407 | -5/Factory | Accompanied by 17 allies 16407 | -5/Factory | Evolved 2 slots: Utility x2 16707 | -5/Factory | First assault squad dispatched 16735 | -5/Factory | Fabricated Lgt. Regenerative Plating? 16875 | -5/Factory | Found Unknown Device 16875 | -5/Factory | Identified Launcher Loader 16904 | -5/Factory | Build established: Commander-Scout 16978 | -5/Factory | Lost 6 allies 17194 | -5/Factory | Discovered new exit (range 21) 17216 | -5/Factory | Lost 7 allies 17268 | -5/Factory | Discovered new exit (range 36) 17441 | -5/Factory | Build established: Bothacker-Mutant 17957 | -5/Factory | Identified exit to Upper Caves 17957 | -5/Factory | Entered Upper Caves 18014 | -5/Upper Caves | Attracted the attention of an 0b10 checkpoint 18240 | -5/Upper Caves | Discovered new exit (range 19) 18264 | -5/Upper Caves | Entered another Upper Caves area 18264 | -5/Upper Caves | Accompanied by 1 ally 18559 | -5/Upper Caves | Build established: Bothacker-Scout 18705 | -5/Upper Caves | Learned Factory terminal intel 18856 | -5/Upper Caves | Discovered new exit (range 5) 18888 | -5/Upper Caves | Entered Zhirov 18888 | -5/Zhirov | Accompanied by 1 ally 18888 | -5/Zhirov | Discovered new exit (range 3) 18901 | -5/Zhirov | Met Zhirov 18926 | -5/Zhirov | Learned location of Quarantine (-3) 18926 | -5/Zhirov | Learned location of Testing (-2) 18938 | -5/Zhirov | Zhirov requested help retrieving the SGEMP Prototype 18951 | -5/Zhirov | Found Alien Artifact 18973 | -5/Zhirov | Found Alien Artifact 18973 | -5/Zhirov | Identified Integrated Reactor 18973 | -5/Zhirov | Installed Integrated Reactor, increased core energy generation (+10) 19079 | -5/Zhirov | Entered Proximity Caves 19079 | -4/Proximity Caves | Accompanied by 1 ally 19268 | -4/Proximity Caves | Build established: Bothacker-Assassin 19603 | -4/Proximity Caves | Build established: Bothacker-Skirmisher 19764 | -4/Proximity Caves | Attracted the attention of an 0b10 checkpoint 19790 | -4/Proximity Caves | Discovered new exit (range 15) 19809 | -4/Proximity Caves | Entered Factory 19809 | -4/Factory | Evolved 2 slots: Utility x2 19810 | -4/Factory | Loaded intel: 28 terminal locations 20086 | -4/Factory | Discovered new exit (range 8) 20167 | -4/Factory | Identified exit to Upper Caves 20167 | -4/Factory | Identified exit to Extension 20167 | -4/Factory | Identified exit to Armory 20510 | -4/Factory | Learned 4 Quarantine zone layouts 20517 | -4/Factory | Build established: Botlord-Skirmisher 20528 | -4/Factory | Identified exit to Research 20536 | -4/Factory | Learned Armory security intel 20583 | -4/Factory | Learned location of 1 exit from Upper Caves 20776 | -4/Factory | Garrison activated, responded to threat 21290 | -4/Factory | Entered Extension 21290 | -4/Extension | Accompanied by 1 ally 21291 | -4/Extension | Loaded intel: 26 trap records 21345 | -4/Extension | Rescued a captive Derelict 21912 | -4/Extension | Build established: Bothacker-Skirmisher 22192 | -4/Extension | Rescued a captive Derelict 22192 | -4/Extension | Rescued a captive Derelict 22206 | -4/Extension | Spotted B-86 Titan 22662 | -4/Extension | Spotted B-86 Titan 22675 | -4/Extension | Assimilated Titan 7a with formatsys_high 22677 | -4/Extension | Allies destroyed B-86 Titan 22701 | -4/Extension | Discovered exit to Research (range 9) 22724 | -4/Extension | Rescued A7 22779 | -4/Extension | Rescued a captive Derelict 22780 | -4/Extension | Rescued a captive Derelict 22801 | -4/Extension | Rescued a captive Derelict 22828 | -4/Extension | Rescued a captive Derelict 22918 | -4/Extension | Rescued a captive Derelict 22919 | -4/Extension | Rescued a captive Derelict 22948 | -4/Extension | Rescued a captive Derelict 22999 | -4/Extension | Discovered exit to Research (range 19) 23012 | -4/Extension | Discovered new exit (range 6) 23174 | -4/Extension | Entered Cetus 23174 | -4/Cetus | Accompanied by 18 allies (A7) 23179 | -4/Cetus | Acquired a Cetus Manufacturing Module code from A7 23182 | -4/Cetus | Spotted Cetus Guard 23182 | -4/Cetus | Spotted Cetus Guard 23186 | -4/Cetus | Spotted Cetus Guard 23186 | -4/Cetus | Spotted Cetus Guard 23200 | -4/Cetus | Allies destroyed Cetus Guard 23208 | -4/Cetus | Allies destroyed Cetus Guard 23209 | -4/Cetus | Allies destroyed Cetus Guard 23215 | -4/Cetus | Allies destroyed Cetus Guard 23243 | -4/Cetus | Lost 5 allies 23323 | -4/Cetus | Started Cetus Manufacturing Module 23344 | -4/Cetus | Discovered new exit (range 22) 23348 | -4/Cetus | Manufactured an Enhanced Grunt 23373 | -4/Cetus | Manufactured an Enhanced Grunt 23398 | -4/Cetus | Manufactured an Enhanced Grunt 23423 | -4/Cetus | Manufactured an Enhanced Grunt 23448 | -4/Cetus | Manufactured an Enhanced Grunt 23514 | -4/Cetus | Entered Archives 23514 | -4/Archives | Accompanied by 17 allies (A7) 23570 | -4/Archives | Discovered exit to Research (range 13) 23632 | -4/Archives | Discovered new exit (range 17) 23635 | -4/Archives | Build established: Commander-Skirmisher 23643 | -4/Archives | Discovered new exit (range 17) 24013 | -4/Archives | Unable to access archive contents 24030 | -4/Archives | Unable to access archive contents 24045 | -4/Archives | Unable to access archive contents 25001 | -4/Archives | Entered Hub_04(d) 25001 | -4/Hub_04(d) | Accompanied by 16 allies 25003 | -4/Hub_04(d) | Loaded intel: 15 terminal locations 25043 | -4/Hub_04(d) | Lost 3 allies 25088 | -4/Hub_04(d) | Discovered exit to Research (range 14) 25179 | -4/Hub_04(d) | Discovered exit to Research (range 14) 25250 | -4/Hub_04(d) | Lost 5 allies 25504 | -4/Hub_04(d) | Discovered exit to Research (range 17) 25509 | -4/Hub_04(d) | Discovered exit to Research (range 8) 25660 | -4/Hub_04(d) | Network Hub disabled 25664 | -4/Hub_04(d) | Spotted Lightning 25665 | -4/Hub_04(d) | Spotted Lightning 25668 | -4/Hub_04(d) | Spotted Lightning 25672 | -4/Hub_04(d) | System corruption reached 10% 25673 | -4/Hub_04(d) | Spotted Lightning 25699 | -4/Hub_04(d) | Spotted Lightning 25699 | -4/Hub_04(d) | Spotted Lightning 25703 | -4/Hub_04(d) | Spotted Lightning 25704 | -4/Hub_04(d) | Spotted Lightning 25707 | -4/Hub_04(d) | System corruption reached 30% 25707 | -4/Hub_04(d) | Entered Research 25707 | -3/Research | Evolved 2 slots: Utility x2 25708 | -3/Research | Identified exit to Quarantine 25731 | -3/Research | Build established: Bothacker-Skirmisher 25735 | -3/Research | Lost 8 parts (2p2n1u3w) 25978 | -3/Research | Discovered exit to Quarantine (range 22) 25998 | -3/Research | Discovered new exit (range 59) 26038 | -3/Research | System corruption reached 10% 26304 | -3/Research | Build established: Bothacker-Mutant 26552 | -3/Research | Discovered new exit (range 36) 26816 | -3/Research | Spotted B-86 Titan 26974 | -3/Research | System corruption reached 30% 27057 | -3/Research | Build established: Bothacker-Skirmisher 27233 | -3/Research | Discovered new exit (range 8) 27363 | -3/Research | Identified exit to Research 27421 | -3/Research | Entered another Research area 27421 | -2/Research | Evolved 2 slots: Weapon x2 27422 | -2/Research | Identified exit to Testing 27437 | -2/Research | Discovered new exit (range 10) 28458 | -2/Research | Lost 3 parts (1n2u) 28483 | -2/Research | System corruption reached 10% 28508 | -2/Research | Lost 4 parts (1p1u2w) 28766 | -2/Research | Core integrity fell below 50% 28782 | -2/Research | Lost 9 parts (1p5n2u1w) 28824 | -2/Research | Entered Access 28824 | -1/Access | Evolved 2 slots: Utility x2 29035 | -1/Access | Build established: Hacker-Scout 29206 | -1/Access | Garrison activated, responded to threat 29338 | -1/Access | Build established: Hacker-Assassin 29417 | -1/Access | Identified exit to Surface 29704 | -1/Access | Spotted B-99 Colossus 29904 | *** | Escaped! Last Messages --------------- 29872_ L-61 Swordsman unfolds itself. 29872_ B-74 Champion unfolds itself. 29872_ E-15 Imp unfolds itself. 29874_ K-01 Serf collects debris. 29876_ >> Watcher Feeds: Feed link from W-44 Eye lost. 29885_ Lgt. Quantum Reactor blown off. 29885_ Adv. Reaction Control System blown off. 29885_ E-15 Imp destroyed. 29885_ K-01 Serf collects debris. 29886_ Acquired System Shield. 29888_ K-01 Serf collects debris. 29889_ Acquired 10 matter. 29890_ Acquired Propulsion Shielding. 29890_ K-01 Serf collects debris. 29892_ Acquired Unknown Flight Unit. 29892_ Identified Cesium-ion Thruster. 29902_ Connecting with Terminal... >>Open(Door) Sealed Barrier opened. 29903_ The Access Shell folds into the floor. Map ----- +----------------------------------------------------+ | ?????????????????????????????????????????????????? | | ?????????????????????????????????????????????????? | | ?????????????????????????????????????????????????? | | ?????????????????????????????????????????????????? | | ?????????????????????????????????????????????????? | | ?????????????????????????????????????????????????? | | ?????????????????????????????????????????????????? | | ?????????????????????????????????????????????????? | | ?????????????????????????????????????????????????? | | ?????????????????????????????????????????????????? | | ?????????????????????????????????????????????????? | | ??????????????????????????????????????###????????? | | ?????????????????????????????????????? #????????? | | ?????????????????????????????????????? #????????? | | ?????????????????????????????????????? #????????? | | ?????????????????????????????????????? #????????? | | ?????????????????????????????????????? #????????? | | ?????????????????????????????????????? #????????? | | ?????????????????????????????????????# #????????? | | ?????????????????????????????###?????# #????????? | | ????????????????????########## ####### #????????? | | ????????????????????" #????????? | | ??????????????BB????" #????????? | | ??????????????BB????" #????????? | | ????????????????????" #????????? | | ????????????????????" "@ #????????? | | ????????????????????" "" #????????? | | ????????????????????" #????????? | | ????????#?????BB????" #????????? | | ???????? ?????BB????" """ """ #????????? | | ??????? #??????????" """T""" #????????? | | ??????? #??????????########## ####### #????????? | | #???"? #???????????????????###?????# #????????? | | # ?""" #???????????????????????????# #????????? | | # ?""" #######?????????????????????# #????????? | | # " ##"""""?????????????????????# #????????? | | # ##"""""?????????????????????# #????????? | | # ##"" F"###################### ##### ##? | | # " # = | | # """ # | | # """ # ########+##########+########### | | # " # * #????# #?????????????????? | | # # #????# #?????????????????? | | # # #????# #?????????????????? | | # # ""#????# #?????"???????????? | | ?? # ""#????# * #????"""??????????? | | ???? # ""#????# ! #???"""???????????? | | ######/### G#????# * #????"????????????? | | # # ""#????# #?????????????????? | | # # ""#????# #?????????????????? | +----------------------------------------------------+ Best States ------------- Heat Dissipation 90 Energy Generation 59 Energy Capacity 670 Matter Stores 300 Matter Capacity 300 Sight Range 22 Terrain Scan Range 24 Terrain Scan Density 210 Jamming Range 14 Power Amplification 30 Armor Coverage 450 Resistance: TH 30 Propulsion Shielding 33 Utility Shielding 90 Phase Shifting 10 Evasion (%) 75 Targeting Accuracy 14 Melee Accuracy 8 Core Analysis 6 Recoil Reduction 6 Energy Filtering 50 Particle Charging 25 Offensive Hacking 14 Defensive Hacking 22 Relay Coupler Types 3 Relay Coupler Value 66 Item Schematics ----------------- Combat Drone Bay | -7/Data Miner | Free Lgt. Regenerative Plating | -7/Data Miner | Free Cld. Cesium-ion Thruster | -7/Data Miner | Free Thermal Defense Suite | -7/Data Miner | Free Cld. Plasma Cannon | -7/Data Miner | Free Antigrav System | -7/Data Miner | Free Adv. Shield Generator | -7/Data Miner | Free Imp. Plasma Cutter | -7/Data Miner | Free Drone Bay | -7/Data Miner | Free Adv. Cooling System | -7/Data Miner | Free Imp. Shock Absorption System | -7/Data Miner | Free Hyp. Mass Driver | -7/Data Miner | Free Myomer Leg | -7/Data Miner | Free Assault Drone Bay | -5/Zhirov | Free Exp. Heat Sink | -5/Zhirov | Free Exp. Optical Array | -5/Zhirov | Free Imp. Arc Thrower | -5/Zhirov | Free Robot Schematics ------------------ A-15 Conveyor | -7/Data Miner | Free S-27 Virus | -7/Data Miner | Free G-50 Soldier | -7/Data Miner | Free W-25 Informer | -7/Data Miner | Free Y-54 Guardian | -7/Data Miner | Free Fabricated ------------ Combat Drone Bay | x1 | -6/Factory Lgt. Regenerative Plating | x1 | -5/Factory Alien Tech Used ----------------- Core Expander Integrated Reactor Achievements -------------- Quick And Dirty Sniper Tank Challenges ------------ None Game ------ Seed InsulationLinkedReplicator Manual? 0 Play Time 13:06:28 Cumulative 92.4 hours Start 2024.08.29 @ 01:00:32 End 2024.08.31 @ 07:33:49 Sessions 10 Manual Loads 0 Difficulty Rogue Special Mode None Game No. 12 Rogue 12 Adventurer 0 Explorer 0 Win Type 0 Total 4 Types 2/0/2/0/0/0/0/0/0 Lore% 31 Gallery% 42 Achievement% 54 Wizard Run 0 Options --------- Layout 0 ASCII 1 Keyboard 1 Movement Arrows Keybinds 0 Fullscreen 1 Font 12/Smallcaps Map View 83x54 Zoom Use 0% Tactical HUD 1 Map Filters NONE Filters NONE Steam 0 RUN: f3bf450e-5f97-456b-b0a3-3976b92ea00c